Workbook

Sheet OUTPUT
A2: IRR 2024 Sch A-9 F.Z26.XLSM
A3: 09/19/2023
A4: CENTRAL VALLEY PROJECT
A5: SCHEDULE OF IRRIGATION ESTIMATED OPERATION & MAINTENANCE COSTS
A6: BY FACILITY AND/OR COMPONENT
A7: 2024 IRRIGATION WATER RATES
A10: Category | B10: A) Facility/Contractor Ref | C10: Related Footnotes | D10: B) Estimated O&M & Corps Expense | E10: C) Estimated Project Use Energy Cost < A-11> | F10: D) Total Estimated Costs (B+C)
A11: - | B11: - | C11: - | D11: - | E11: - | F11: -
A12: Storage | B12: American River | C12: - | D12: 83736 | E12: 0 | F12: 83736
A13: Storage | B13: Black Butte Reservoir | C13: - | D13: 1897529.033 | E13: 0 | F13: 1897529.033
A14: Storage | B14: Buchanan Reservoir | C14: - | D14: 1021702.76 | E14: 0 | F14: 1021702.76
A15: Storage | B15: Clair A. Hill Whiskeytown Dam | C15: - | D15: 180033 | E15: 0 | F15: 180033
A16: Storage | B16: Clear Creek Tunnel | C16: - | D16: 38336 | E16: 0 | F16: 38336
A17: Storage | B17: Columbia-Mowry System | C17: - | D17: 242627 | E17: 22256.87103 | F17: 264883.871 | K17: 0
A18: Storage | B18: Coleman National Fish Hatchery | C18: - | D18: 0 | E18: 0 | F18: 0 | K18: 0
A19: Storage | B19: Delta Cross Channel | C19: - | D19: 111370 | E19: 0 | F19: 111370 | K19: 0
A20: Storage | B20: Folsom D & R | C20: - | D20: 951561 | E20: 0 | F20: 951561 | K20: 0
A21: Storage | B21: Folsom Pumping Plant | C21: - | D21: 636400 | E21: 0 | F21: 636400 | K21: 0
A22: Storage | B22: Friant D & R | C22: - | D22: 1612400 | E22: 0 | F22: 1612400
A23: Storage | B23: Gianelli, WR Pump Generator Plant | C23: - | D23: 0 | E23: 5053716.8 | F23: 5053716.8 | K23: 0
A24: Storage | B24: Less: WRGPGP Dir Pump | C24: - | D24: 0 | E24: 0 | F24: 0 | K24: 0
A25: Storage | B25: Regeneration Credit | C25: - | D25: 0 | E25: -4703487.861 | F25: -4703487.861 | K25: 0
A26: Storage | B26: Hidden Reservoir | C26: - | D26: 314057.54 | E26: 0 | F26: 314057.54 | K26: 0
A27: Storage | B27: Hill, CA Whiskeytown Dam | C27: - | D27: 0 | E27: 0 | F27: 0 | K27: 0
A28: Storage | B28: New Melones D&R | C28: - | D28: 76429 | E28: 0 | F28: 76429 | K28: 0
A29: Storage | B29: New Melones Long Term Operating Plan | C29: - | D29: 22836 | E29: 0 | F29: 22836 | K29: 0
A30: Storage | B30: Nimbus D&R | C30: - | D30: 107120 | E30: 0 | F30: 107120 | K30: 0
A31: Storage | B31: Red Bluff Diversion Dam | C31: - | D31: 0 | E31: 0 | F31: 0 | K31: 0
A32: Storage | B32: Sacramento River | C32: - | D32: 447374 | E32: 0 | F32: 447374 | K32: 0
A33: Storage | B33: San Joaquin River | C33: - | D33: 78349 | E33: 0 | F33: 78349 | K33: 0
A34: Storage | B34: San Luis Unit - Other Routine O&M Costs - Joint | C34: - | D34: 6098117 | E34: 0 | F34: 6098117 | K34: 0
A35: Storage | B35: Security Costs | C35: - | D35: 2127076 | E35: 0 | F35: 2127076 | K35: 0
A36: Storage | B36: Shasta D&R | C36: - | D36: 1944538 | E36: 416707.0535 | F36: 2361245.053 | K36: 0
A37: Storage | B37: Spring Creek Debris Dam | C37: - | D37: 110412 | E37: 0 | F37: 110412
A38: Storage | B38: Trinity D&R & Clair Eagle Lake | C38: - | D38: 320030 | E38: 0 | F38: 320030 | K38: 0
A39: Storage | B39: Water Forum - American River Division | C39: - | D39: 15225 | E39: 0 | F39: 15225 | I39: variance | K39: 0
A40: Total | B40: Storage including PUE Offset | C40: 2/ 3/ | D40: 18437258.33 | E40: 789192.8643 | F40: 19226451.2 | H40: 22845240.33 | I40: -4407982
A41: Total | B41: Storage PUE Credit | C41: 3/ | D41: 0 | E41: -789192.8643 | F41: -789192.8643
A42: Conveyance | B42: DMC Regulatory Actions | C42: - | D42: 51400 | E42: 0 | F42: 51400
A43: Conveyance | B43: Hydrologic Operating Modeling - Delta Division | C43: - | D43: 0 | E43: 0 | F43: 0
A44: Conveyance | B44: DMC Subsidence Study | C44: - | D44: 0 | E44: 0 | F44: 0
A45: Conveyance | B45: Friant-Kern Canal | C45: - | D45: 6526 | E45: 0 | F45: 6526
A46: Conveyance | B46: Arroyo Pasajero | C46: - | D46: 6849 | E46: 0 | F46: 6849
A47: Conveyance | B47: Los Banos Creek Detention Dam - O&M Joint | C47: - | D47: 0 | E47: 0 | F47: 0
A48: Conveyance | B48: Madera Canal | C48: - | D48: 4000 | E48: 0 | F48: 4000
A49: Conveyance | B49: South Delta Hydrodynamics Fish Inv. | C49: - | D49: 0 | E49: 0 | F49: 0
A50: Conveyance | B50: San Luis Canal | C50: - | D50: 0 | E50: 0 | F50: 0
A51: Conveyance | B51: Water Wheeling Cost -Unfunded | C51: - | D51: 0 | E51: 0 | F51: 0
A52: Conveyance | B52: Tehama-Colusa Canal | C52: - | D52: 58576 | E52: 0 | F52: 58576
A53: Conveyance | B53: San Luis Canal - Federal Only | C53: - | D53: 0 | E53: 0 | F53: 0
A54: Conveyance | B54: Drainage Projects | C54: - | D54: 660000 | E54: 0 | F54: 660000
A55: Total | B55: Conveyance | C55: - | D55: 787351 | E55: 0 | F55: 787351
A56: Total | B56: Conveyance - Less: Direct Billed | C56: - | D56: -787351 | E56: 0 | F56: -787351
A57: Total | B57: Net Conveyance | C57: - | D57: 0 | E57: 0 | F57: 0
A58: Conveyance Pumping | B58: Corning Pumping Plant | C58: - | D58: 0 | E58: 242905.5224 | F58: 242905.5224
A59: Conveyance Pumping | B59: Dos Amigos Pumping Plant | C59: - | D59: 0 | E59: 5008543.763 | F59: 5008543.763
A60: Conveyance Pumping | B60: O'Neill Pump Gen Plant - Federal | C60: - | D60: 0 | E60: 2335072.512 | F60: 2335072.512
A61: Conveyance Pumping | B61: Jones Pumping Plant | C61: - | D61: 0 | E61: 11957308.61 | F61: 11957308.61
A62: Total | B62: Conveyance Pumping | C62: - | D62: 0 | E62: 19543830.41 | F62: 19543830.41
A63: Total | B63: Conveyance Pumping - Less: Direct Billed | C63: - | D63: 0 | E63: -19543830.41 | F63: -19543830.41
A64: Total | B64: Net Conveyance Pumping | C64: - | D64: 0 | E64: 0 | F64: 0
A65: Direct Pumping | B65: Colusa County WD | C65: - | D65: 0 | E65: 483227.8104 | F65: 483227.8104
A66: Direct Pumping | B66: Corning WD | C66: - | D66: 0 | E66: 72349.3602 | F66: 72349.3602
A67: Direct Pumping | B67: Cross Valley Canal Contractors (Dos Amigos & Banks) | C67: - | D67: 0 | E67: 378170.8936 | F67: 378170.8936
A68: Direct Pumping | B68: Dunnigan WD | C68: - | D68: 0 | E68: 9371.971 | F68: 9371.971
A69: Direct Pumping | B69: Kanawha WD | C69: - | D69: 0 | E69: 49553.16562 | F69: 49553.16562
A70: Direct Pumping | B70: Orland-Artois WD | C70: - | D70: 0 | E70: 116610.6019 | F70: 116610.6019
A71: Direct Pumping | B71: Panoche WD | C71: - | D71: 0 | E71: 514.4722 | F71: 514.4722
A72: Direct Pumping | B72: Proberta WD | C72: - | D72: 0 | E72: 644.7058 | F72: 644.7058
A73: Direct Pumping | B73: San Benito County WD | C73: - | D73: 0 | E73: 0 | F73: 0
A74: Direct Pumping | B74: Gianelli, WR Pump Generator | C74: 1/ | D74: 0 | E74: 29224.53 | F74: 29224.53
A75: Direct Pumping | B75: Pacheco PP | C75: 1/ | D75: 0 | E75: 127451.06 | F75: 127451.06
A76: Direct Pumping | B76: Glenn Valley WD | C76: - | D76: 0 | E76: 0 | F76: 0
A77: Direct Pumping | B77: Santa Clara Valley WD | C77: - | D77: 0 | E77: 0 | F77: 0
A78: Direct Pumping | B78: Coyote PP | C78: 1/ | D78: 0 | E78: 17238.44586 | F78: 17238.44586
A79: Direct Pumping | B79: Gianelli, WR Pump Generator | C79: 1/ | D79: 0 | E79: 41774.27 | F79: 41774.27
A80: Direct Pumping | B80: Pacheco PP | C80: 1/ | D80: 0 | E80: 182181.75 | F80: 182181.75
A81: Direct Pumping | B81: San Luis WD | C81: - | D81: 0 | E81: 856283.4906 | F81: 856283.4906
A82: Direct Pumping | B82: Westlands WD | C82: - | D82: 0 | E82: 0 | F82: 0
A83: Direct Pumping | B83: Pleasant Valley PP | C83: - | D83: 0 | E83: 635638.1908 | F83: 635638.1908
A84: Direct Pumping | B84: Pleasant Valley Relifts | C84: - | D84: 0 | E84: 102528.8531 | F84: 102528.8531
A85: Direct Pumping | B85: Westlands WD Relifts | C85: - | D85: 0 | E85: 4060096.483 | F85: 4060096.483
A86: Direct Pumping | B86: Westside WD | C86: - | D86: 0 | E86: 84698.2351 | F86: 84698.2351 | K86: 0
A87: Direct Pumping | B87: Wintu PP (Bella Vista WD) | C87: - | D87: 0 | E87: 120548.9068 | F87: 120548.9068 | K87: 0
A88: Total | B88: Direct Pumping | C88: - | D88: 0 | E88: 7368107.196 | F88: 7368107.196 | K88: 0
A89: Total | B89: Direct Pumping to WAPA (Specific Users) | C89: - | D89: 0 | E89: -6701808.648 | F89: -6701808.648
A90: Total | B90: Direct Pumping Credit/to WAPA | C90: 3/ | D90: 0 | E90: -666298.5447 | F90: -666298.5447
A91: Total | B91: Direct Pumping in Ratesetting | C91: - | D91: 0 | E91: 0.003001564764 | F91: 0.003001564764
A92: Total | B92: Direct Pumping - Sub-total | C92: - | D92: 18437258.33 | E92: 0 | F92: 18437258.33
A93: Non-Recurring O&M - Storage | B93: Gianelli Pump/Gen Plant - San Felipe Unit | C93: - | D93: 0 | E93: 0 | F93: 0
A94: Non-Recurring O&M - Storage | B94: Gianelli Pump/Gen Plant - All Other Contractors | C94: - | D94: 0 | E94: 0 | F94: 0
A95: Non-Recurring O&M - Storage | B95: All Other Storage | C95: - | D95: 0 | E95: 0 | F95: 0
A96: Total | B96: Non-Recurring Storage | C96: - | D96: 0 | E96: 0 | F96: 0
A97: Non-Recurring O&M - Conveyance | B97: Conveyance | C97: - | D97: 0 | E97: 0 | F97: 0
A98: Non-Recurring O&M - Conveyance | B98: Less Direct Billed | C98: - | D98: 0 | E98: 0 | F98: 0
A99: Non-Recurring O&M - Conveyance | B99: Net Conveyance Pumping | C99: - | D99: 0 | E99: 0 | F99: 0
A100: Non-Recurring O&M - Conveyance Pumping | B100: Conveyance Pumping | C100: - | D100: 0 | E100: 0 | F100: 0
A101: Non-Recurring O&M - Conveyance Pumping | B101: Less Direct Billed | C101: - | D101: 0 | E101: 0 | F101: 0
A102: Non-Recurring O&M - Conveyance Pumping | B102: Net Conveyance Pumping | C102: - | D102: 0 | E102: 0 | F102: 0
A103: Non-Recurring O&M - Direct Pumping | B103: Direct Pumping | C103: - | D103: 0 | E103: 0 | F103: 0
A104: Total | B104: Non-Recurring O&M - Direct Pumping - Total Non-Recurring Costs | C104: - | D104: 0 | E104: 0 | F104: 0
A105: Water Marketing Expense | B105: Suisun Marsh Protection | C105: - | D105: 365400 | E105: 0 | F105: 365400 | J105: 0 | K105: 0
A106: Water Marketing Expense | B106: Contract Administration | C106: - | D106: 7781478 | E106: 0 | F106: 7781478 | K106: 0
A107: Water Marketing Expense | B107: Water & Power Systems Control | C107: - | D107: 6140190 | E107: 0 | F107: 6140190 | K107: 0
A108: Water Marketing Expense | B108: Other Expenses | C108: - | D108: 4916238 | E108: 0 | F108: 4916238 | K108: 0
A109: Water Marketing Expense | B109: Hazardous Material Management Program | C109: - | D109: 360165 | E109: 0 | F109: 360165
A110: Water Marketing Expense | B110: General Expense | C110: - | D110: 206617 | E110: 0 | F110: 206617 | K110: 0
A111: Water Marketing Expense | B111: Coleman National Fish Hatchery | C111: - | D111: 2055375 | E111: 0 | F111: 2055375
A112: Water Marketing Expense | B112: Water Wheeling Cost | C112: - | D112: 381045 | E112: 0 | F112: 381045
A113: Non-Recurring O&M - Water Marketing Expense | B113: Non-Recurring Water Marketing - SCCAO Tracy | C113: - | D113: 0 | E113: 0 | F113: 0
A114: Water Marketing Expense | B114: Trinity PUD Assessment | C114: - | D114: 255000 | E114: 0 | F114: 255000 | K114: 0
B115: Water Marketing Expense - Total Water Marketing | C115: - | D115: 22461508 | E115: 0 | F115: 22461508
A116: Grand Total | B116: - | C116: - | D116: 40898766.33 | E116: 0 | F116: 40898766.33 | K116: 0

Sheet Footnotes
A1: IRR 2024 Sch A-9 F.Z26.XLSM
A2: 09/19/2023
A3: CENTRAL VALLEY PROJECT
A4: SCHEDULE OF IRRIGATION ESTIMATED OPERATION & MAINTENANCE COSTS
A5: BY FACILITY AND/OR COMPONENT
A6: 2024 IRRIGATION WATER RATES
A8: Footnotes:
A9: 1/
A10: Suballocation of San Felipe Unit Direct Pumping Costs:
A12: Contractor | B12: 2024 Projected Deliveries (Sch A-12) | C12: Ratios
A13: San Benito County WD | B13: 8543.857143 | C13: 0.41162
A14: Santa Clara Valley WD | B14: 12212.71429 | C14: 0.58838
A15: Total San Felipe | B15: 20756.57143 | C15: 1
A16: Total San Felipe | B16: 20756.57143 | C16: 0.01385
A17: All Other Contractors | B17: 1477459.286 | C17: 0.98615
A18: Total Storage Deliveries | B18: 1498215.857 | C18: 1
A20: Direct Pumping Allocation (Sch A-11)
A21: Contractor | B21: William R. Gianelli Pump-Generator Plant PUE | C21: Pacheco PP | D21: Coyote PP | E21: Grand Total
A22: San Benito County WD | B22: 29224.53 | C22: 127451.06 | D22: 0 | E22: 156675.59
A23: Santa Clara Valley WD | B23: 41774.27 | C23: 182181.75 | D23: 17238.44586 | E23: 241194.4659
A24: Total San Felipe | B24: 70998.8 | C24: 309632.81 | D24: 17238.44586 | E24: 397870.0559
A26: 2/
A27: Storage Costs are broken down between San Felipe Unit Contractors and all others as follows:
A29: - | B29: San Felipe Unit Storage | C29: All Other Contractors Storage | D29: Total
A30: Projected 2024 Storage Deliveries | B30: 20756.57143 | C30: 1477459.286 | D30: 1498215.857
A31: Ratios | B31: 0.01385 | C31: 0.98615 | D31: 1
A32: Allocated Gianelli, WR Pump Generator Costs - Routine | B32: - | C32: - | D32: -
A33: Project Use Costs | B33: * | C33: 5053716.8 | D33: 5053716.8
A34: Regeneration Credit | B34: 0 | C34: -4703487.861 | D34: -4703487.861
A35: Allocated Storage O&M Costs | B35: 261435.6783 | C35: 18614786.58 | D35: 18876222.26
A36: Allocated Storage O&M Costs - Non-Recurring O&M | B36: 0 | C36: 0 | D36: 0
A37: Allocated Gianelli, WR Pump Generator Costs- XM | B37: - | C37: - | D37: 0
A38: Gianelli (includes PUE) | B38: - | C38: 0 | D38: 0
A39: Total | B39: 261435.6783 | C39: 18965015.52 | D39: 19226451.2
A40: Cost per Acre-foot (to Schedule A-8) | B40: 12.6 | C40: 12.84 | D40: -
A42: * San Felipe Unit contractors' share of the William R. Gianelli PG PUE has been included in the direct pumping section (See Schedule 11, page 4)
A44: 3/
A45: Project Use Energy payment is being remitted to Western Area Power Authority for storage and direct pumping based on the deliveries of a select few contractors.
A46: The rates for the select few contractors are reduced as a credit in the O&M rates. All contractors will ultimately pay for the storage and direct pumping service
A47: but as an offset to the amount paid by the select few. Refer to schedule A-11 for calculation details.
A49: 4/
A50: Non-Recurring O&M costs are recovered under the new approved negotiation directive.

Sheet Table 6 revised (hidden)
A1: Table 6. Allocated Operation and Maintenance Costs, Fiscal Year 2023 | E1: rows highlighted in green are the only revision to Table 6
A11: Table 6. Allocated Operation and Maintenance Costs, Fiscal Year 2023 | P11: Sheet 1 of 11
A12: Central Valley Project
A13: California
P15: Non-
D16: Budget Year | E16: Increase | F16: =[3]A!$D$17 -> Budget Year | I16: Fish and | L16: Flood | N16: Water Quality | O16: State of | P16: Reimbursable | Q16: Row Sum
A17: Component and Feature | B17: Division or Unit | D17: =[3]A!$C$18 -> 2022 | E17: (Decrease) | F17: =[3]A!$D$18 -> 2023 | G17: M&I Water | H17: Irrigation | I17: Wildlife | J17: Recreation | K17: Power | L17: Control | M17: Navigation | N17: Improvement | O17: California | P17: Program | Q17: Check
A19: STORAGE O&M
A21: American River Operations Support | B21: American River Division | D21: 282000 | E21: =F21-D21 -> -7000 | F21: =[3]B!J60 -> 275000 | G21: =ROUND($F21*[3]G!E$38,0) -> 16473 | H21: =F21-G21-SUM(I21:P21) -> 84148 | I21: =ROUND($F21*[3]G!G$38,0) -> 1953 | J21: =ROUND($F21*[3]G!H$38,0) -> 0 | K21: =ROUND($F21*[3]G!I$38,0) -> 29068 | L21: =ROUND($F21*[3]G!J$38,0) -> 111760 | M21: =ROUND($F21*[3]G!K$38,0) -> 0 | N21: =ROUND($F21*[3]G!L$38,0) -> 31598 | O21: =ROUND($F21*[3]G!M$38,0) -> 0 | P21: =ROUND($F21*[3]G!N$38,0) -> 0 | Q21: =F21-SUM(G21:P21) -> 0
A22: Clair A. Hill Whiskeytown Dam | B22: Trinity River Division | D22: 396000 | E22: 118000 | F22: =[3]B!J417 -> 514000 | G22: =ROUND($F22*[3]G!E$306,0) -> 31200 | H22: 158414 | I22: =ROUND($F22*[3]G!G$306,0) -> 3135 | J22: =ROUND($F22*[3]G!H$306,0) -> 0 | K22: =ROUND($F22*[3]G!I$306,0) -> 53302 | L22: =ROUND($F22*[3]G!J$306,0) -> 208890 | M22: =ROUND($F22*[3]G!K$306,0) -> 0 | N22: =ROUND($F22*[3]G!L$306,0) -> 59059 | O22: =ROUND($F22*[3]G!M$306,0) -> 0 | P22: =ROUND($F22*[3]G!N$306,0) -> 0 | Q22: 0
A23: Clear Creek Tunnel | B23: Trinity River Division | D23: 125000 | E23: 0 | F23: =[3]B!J421 -> 125000 | G23: =ROUND($F23*[3]G!E$310,0) -> 7588 | H23: 38523 | I23: =ROUND($F23*[3]G!G$310,0) -> 763 | J23: =ROUND($F23*[3]G!H$310,0) -> 0 | K23: =ROUND($F23*[3]G!I$310,0) -> 12963 | L23: =ROUND($F23*[3]G!J$310,0) -> 50800 | M23: =ROUND($F23*[3]G!K$310,0) -> 0 | N23: =ROUND($F23*[3]G!L$310,0) -> 14363 | O23: =ROUND($F23*[3]G!M$310,0) -> 0 | P23: =ROUND($F23*[3]G!N$310,0) -> 0 | Q23: 0
A24: Columbia-Mowry System | B24: Friant Division | D24: 302000 | E24: 0 | F24: =[3]B!J156 -> 302000 | G24: =ROUND($F24*[3]G!E$182,0) -> 37267 | H24: 240755 | I24: =ROUND($F24*[3]G!G$182,0) -> 9966 | J24: =ROUND($F24*[3]G!H$182,0) -> 0 | K24: =ROUND($F24*[3]G!I$182,0) -> 12593 | L24: =ROUND($F24*[3]G!J$182,0) -> 0 | M24: =ROUND($F24*[3]G!K$182,0) -> 0 | N24: =ROUND($F24*[3]G!L$182,0) -> 0 | O24: =ROUND($F24*[3]G!M$182,0) -> 1419 | P24: =ROUND($F24*[3]G!N$182,0) -> 0 | Q24: 0
A25: Contra Loma Dam | B25: Delta Division | D25: 0 | E25: 0 | F25: =[3]B!J221 -> 0 | G25: =ROUND($F25*[3]G!E$124,0) -> 0 | H25: 0 | I25: =ROUND($F25*[3]G!G$124,0) -> 0 | J25: =ROUND($F25*[3]G!H$124,0) -> 0 | K25: =ROUND($F25*[3]G!I$124,0) -> 0 | L25: =ROUND($F25*[3]G!J$124,0) -> 0 | M25: =ROUND($F25*[3]G!K$124,0) -> 0 | N25: =ROUND($F25*[3]G!L$124,0) -> 0 | O25: =ROUND($F25*[3]G!M$124,0) -> 0 | P25: =ROUND($F25*[3]G!N$124,0) -> 0 | Q25: 0
A26: Delta Cross Channel | B26: Delta Division | D26: 180000 | E26: 0 | F26: =[3]B!J214 -> 180000 | G26: =ROUND($F26*[3]G!E$119,0) -> 22212 | H26: 143496 | I26: =ROUND($F26*[3]G!G$119,0) -> 5940 | J26: =ROUND($F26*[3]G!H$119,0) -> 0 | K26: =ROUND($F26*[3]G!I$119,0) -> 7506 | L26: =ROUND($F26*[3]G!J$119,0) -> 0 | M26: =ROUND($F26*[3]G!K$119,0) -> 0 | N26: =ROUND($F26*[3]G!L$119,0) -> 0 | O26: =ROUND($F26*[3]G!M$119,0) -> 846 | P26: =ROUND($F26*[3]G!N$119,0) -> 0 | Q26: 0
A27: Folsom Dam and Reservoir | B27: American River Division | D27: 3518000 | E27: -443000 | F27: =[3]B!J53 -> 3075000 | G27: =ROUND($F27*[3]G!E$31,0) -> 184193 | H27: 940948 | I27: =ROUND($F27*[3]G!G$31,0) -> 21833 | J27: =ROUND($F27*[3]G!H$31,0) -> 0 | K27: =ROUND($F27*[3]G!I$31,0) -> 325028 | L27: =ROUND($F27*[3]G!J$31,0) -> 1249680 | M27: =ROUND($F27*[3]G!K$31,0) -> 0 | N27: =ROUND($F27*[3]G!L$31,0) -> 353318 | O27: =ROUND($F27*[3]G!M$31,0) -> 0 | P27: =ROUND($F27*[3]G!N$31,0) -> 0 | Q27: 0
A28: Water Forum | B28: American River Division | D28: 60000 | E28: -10000 | F28: =[3]B!J57 -> 50000 | G28: =ROUND($F28*[3]G!E$35,0) -> 2995 | H28: 15300 | I28: =ROUND($F28*[3]G!G$35,0) -> 355 | J28: =ROUND($F28*[3]G!H$35,0) -> 0 | K28: =ROUND($F28*[3]G!I$35,0) -> 5285 | L28: =ROUND($F28*[3]G!J$35,0) -> 20320 | M28: =ROUND($F28*[3]G!K$35,0) -> 0 | N28: =ROUND($F28*[3]G!L$35,0) -> 5745 | O28: =ROUND($F28*[3]G!M$35,0) -> 0 | P28: =ROUND($F28*[3]G!N$35,0) -> 0 | Q28: 0
A29: Folsom Pumping Plant | B29: American River Division | D29: 800000 | E29: 0 | F29: =[3]B!J56 -> 800000 | G29: =ROUND($F29*[3]G!E$34,0) -> 98720 | H29: 637760 | I29: =ROUND($F29*[3]G!G$34,0) -> 26400 | J29: =ROUND($F29*[3]G!H$34,0) -> 0 | K29: =ROUND($F29*[3]G!I$34,0) -> 33360 | L29: =ROUND($F29*[3]G!J$34,0) -> 0 | M29: =ROUND($F29*[3]G!K$34,0) -> 0 | N29: =ROUND($F29*[3]G!L$34,0) -> 0 | O29: =ROUND($F29*[3]G!M$34,0) -> 3760 | P29: =ROUND($F29*[3]G!N$34,0) -> 0 | Q29: 0
A30: Friant Dam and Reservoir | B30: Friant Division | D30: 3224000 | E30: 22000 | F30: =[3]B!J152 -> 3246000 | G30: =ROUND($F30*[3]G!E$178,0) -> 297658 | H30: 1511988 | I30: =ROUND($F30*[3]G!G$178,0) -> 29863 | J30: =ROUND($F30*[3]G!H$178,0) -> 0 | K30: =ROUND($F30*[3]G!I$178,0) -> 61349 | L30: =ROUND($F30*[3]G!J$178,0) -> 1345142 | M30: =ROUND($F30*[3]G!K$178,0) -> 0 | N30: =ROUND($F30*[3]G!L$178,0) -> 0 | O30: =ROUND($F30*[3]G!M$178,0) -> 0 | P30: =ROUND($F30*[3]G!N$178,0) -> 0 | Q30: 0
A31: New Melones Dam and Reservoir | B31: East Side Division | D31: 156000 | E31: 0 | F31: =[3]B!J256 -> 156000 | G31: =ROUND($F31*[3]G!E$153,0) -> 9344 | H31: 47737 | I31: =ROUND($F31*[3]G!G$153,0) -> 1108 | J31: =ROUND($F31*[3]G!H$153,0) -> 0 | K31: =ROUND($F31*[3]G!I$153,0) -> 16489 | L31: =ROUND($F31*[3]G!J$153,0) -> 63398 | M31: =ROUND($F31*[3]G!K$153,0) -> 0 | N31: =ROUND($F31*[3]G!L$153,0) -> 17924 | O31: =ROUND($F31*[3]G!M$153,0) -> 0 | P31: =ROUND($F31*[3]G!N$153,0) -> 0 | Q31: 0
A32: Nimbus Dam and Reservoir | B32: American River Division | D32: 456000 | E32: 1000 | F32: =[3]B!J55 -> 457000 | G32: =ROUND($F32*[3]G!E$33,0) -> 24221 | H32: 123024 | I32: =ROUND($F32*[3]G!G$33,0) -> 2422 | J32: =ROUND($F32*[3]G!H$33,0) -> 0 | K32: =ROUND($F32*[3]G!I$33,0) -> 99169 | L32: =ROUND($F32*[3]G!J$33,0) -> 162281 | M32: =ROUND($F32*[3]G!K$33,0) -> 0 | N32: =ROUND($F32*[3]G!L$33,0) -> 45883 | O32: =ROUND($F32*[3]G!M$33,0) -> 0 | P32: =ROUND($F32*[3]G!N$33,0) -> 0 | Q32: 0
A33: No Hands Bridge | B33: American River Division | D33: 0 | E33: 0 | F33: =[3]B!J44 -> 0 | G33: =ROUND($F33*[3]G!E$22,0) -> 0 | H33: 0 | I33: =ROUND($F33*[3]G!G$22,0) -> 0 | J33: =ROUND($F33*[3]G!H$22,0) -> 0 | K33: =ROUND($F33*[3]G!I$22,0) -> 0 | L33: =ROUND($F33*[3]G!J$22,0) -> 0 | M33: =ROUND($F33*[3]G!K$22,0) -> 0 | N33: =ROUND($F33*[3]G!L$22,0) -> 0 | O33: =ROUND($F33*[3]G!M$22,0) -> 0 | P33: =ROUND($F33*[3]G!N$22,0) -> 0 | Q33: 0
A34: PCWA Pumps | B34: American River Division | D34: 0 | E34: 0 | F34: =[3]B!J43 -> 0 | G34: =ROUND($F34*[3]G!E$21,0) -> 0 | H34: 0 | I34: =ROUND($F34*[3]G!G$21,0) -> 0 | J34: =ROUND($F34*[3]G!H$21,0) -> 0 | K34: =ROUND($F34*[3]G!I$21,0) -> 0 | L34: =ROUND($F34*[3]G!J$21,0) -> 0 | M34: =ROUND($F34*[3]G!K$21,0) -> 0 | N34: =ROUND($F34*[3]G!L$21,0) -> 0 | O34: =ROUND($F34*[3]G!M$21,0) -> 0 | P34: =ROUND($F34*[3]G!N$21,0) -> 0 | Q34: 0
A35: Sacramento River | B35: Sacramento River Division | D35: 593000 | E35: 39000 | F35: =[3]B!J294 -> 632000 | G35: =ROUND($F35*[3]G!E$211,0) -> 10365 | H35: 478613 | I35: =ROUND($F35*[3]G!G$211,0) -> 59534 | J35: =ROUND($F35*[3]G!H$211,0) -> 0 | K35: =ROUND($F35*[3]G!I$211,0) -> 75082 | L35: =ROUND($F35*[3]G!J$211,0) -> 0 | M35: =ROUND($F35*[3]G!K$211,0) -> 0 | N35: =ROUND($F35*[3]G!L$211,0) -> 0 | O35: =ROUND($F35*[3]G!M$211,0) -> 8406 | P35: =ROUND($F35*[3]G!N$211,0) -> 0 | Q35: 0
A36: San Joaquin River | B36: Friant Division | D36: 125000 | E36: 0 | F36: =[3]B!J157 -> 125000 | G36: =ROUND($F36*[3]G!E$183,0) -> 11463 | H36: 58224 | I36: =ROUND($F36*[3]G!G$183,0) -> 1150 | J36: =ROUND($F36*[3]G!H$183,0) -> 0 | K36: =ROUND($F36*[3]G!I$183,0) -> 2363 | L36: =ROUND($F36*[3]G!J$183,0) -> 51800 | M36: =ROUND($F36*[3]G!K$183,0) -> 0 | N36: =ROUND($F36*[3]G!L$183,0) -> 0 | O36: =ROUND($F36*[3]G!M$183,0) -> 0 | P36: =ROUND($F36*[3]G!N$183,0) -> 0 | Q36: 0
A37: San Luis Dam and Reservoir - Oper. - Joint | B37: San Luis Unit | D37: 0 | E37: 0 | F37: =[3]B!J316 -> 0 | G37: =ROUND($F37*[3]G!E$227,0) -> 0 | H37: 0 | I37: =ROUND($F37*[3]G!G$227,0) -> 0 | J37: =ROUND($F37*[3]G!H$227,0) -> 0 | K37: =ROUND($F37*[3]G!I$227,0) -> 0 | L37: =ROUND($F37*[3]G!J$227,0) -> 0 | M37: =ROUND($F37*[3]G!K$227,0) -> 0 | N37: =ROUND($F37*[3]G!L$227,0) -> 0 | O37: =ROUND($F37*[3]G!M$227,0) -> 0 | P37: =ROUND($F37*[3]G!N$227,0) -> 0 | Q37: 0
A38: San Luis Dam and Reservoir - Maint. - Joint | B38: San Luis Unit | D38: 0 | E38: 0 | F38: =[3]B!J317 -> 0 | G38: =ROUND($F38*[3]G!E$228,0) -> 0 | H38: 0 | I38: =ROUND($F38*[3]G!G$228,0) -> 0 | J38: =ROUND($F38*[3]G!H$228,0) -> 0 | K38: =ROUND($F38*[3]G!I$228,0) -> 0 | L38: =ROUND($F38*[3]G!J$228,0) -> 0 | M38: =ROUND($F38*[3]G!K$228,0) -> 0 | N38: =ROUND($F38*[3]G!L$228,0) -> 0 | O38: =ROUND($F38*[3]G!M$228,0) -> 0 | P38: =ROUND($F38*[3]G!N$228,0) -> 0 | Q38: 0
A39: San Luis Joint Use - Extraordinary Main. Items | B39: San Luis Unit | D39: 0 | E39: 0 | F39: =[3]B!J336 -> 0 | G39: =ROUND($F39*[3]G!E$247,0) -> 0 | H39: 0 | I39: =ROUND($F39*[3]G!G$247,0) -> 0 | J39: =ROUND($F39*[3]G!H$247,0) -> 0 | K39: =ROUND($F39*[3]G!I$247,0) -> 0 | L39: =ROUND($F39*[3]G!J$247,0) -> 0 | M39: =ROUND($F39*[3]G!K$247,0) -> 0 | N39: =ROUND($F39*[3]G!L$247,0) -> 0 | O39: =ROUND($F39*[3]G!M$247,0) -> 0 | P39: =ROUND($F39*[3]G!N$247,0) -> 0 | Q39: 0
A40: San Luis Unit - Other Routine O&M Costs - Joint | B40: San Luis Unit | D40: 6900000 | E40: 2258000 | F40: =[3]B!J334 -> 9158000 | G40: =ROUND($F40*[3]G!E$245,0) -> 2882938 | H40: 6079081 | I40: =ROUND($F40*[3]G!G$245,0) -> 81506 | J40: =ROUND($F40*[3]G!H$245,0) -> 0 | K40: =ROUND($F40*[3]G!I$245,0) -> 102570 | L40: =ROUND($F40*[3]G!J$245,0) -> 0 | M40: =ROUND($F40*[3]G!K$245,0) -> 0 | N40: =ROUND($F40*[3]G!L$245,0) -> 0 | O40: =ROUND($F40*[3]G!M$245,0) -> 11905 | P40: =ROUND($F40*[3]G!N$245,0) -> 0 | Q40: 0
A41: San Luis Unit - Reduce Payment to State - Joint | B41: San Luis Unit | D41: 0 | E41: 0 | F41: =[3]B!J335 -> 0 | G41: =ROUND($F41*[3]G!E$246,0) -> 0 | H41: 0 | I41: =ROUND($F41*[3]G!G$246,0) -> 0 | J41: =ROUND($F41*[3]G!H$246,0) -> 0 | K41: =ROUND($F41*[3]G!I$246,0) -> 0 | L41: =ROUND($F41*[3]G!J$246,0) -> 0 | M41: =ROUND($F41*[3]G!K$246,0) -> 0 | N41: =ROUND($F41*[3]G!L$246,0) -> 0 | O41: =ROUND($F41*[3]G!M$246,0) -> 0 | P41: =ROUND($F41*[3]G!N$246,0) -> 0 | Q41: 0
A42: San Luis Dam and Reservoir - Federal Only | B42: San Luis Unit | D42: 0 | E42: 0 | F42: =[3]B!J337 -> 0 | G42: =ROUND($F42*[3]G!E$248,0) -> 0 | H42: 0 | I42: =ROUND($F42*[3]G!G$248,0) -> 0 | J42: =ROUND($F42*[3]G!H$248,0) -> 0 | K42: =ROUND($F42*[3]G!I$248,0) -> 0 | L42: =ROUND($F42*[3]G!J$248,0) -> 0 | M42: =ROUND($F42*[3]G!K$248,0) -> 0 | N42: =ROUND($F42*[3]G!L$248,0) -> 0 | O42: =ROUND($F42*[3]G!M$248,0) -> 0 | P42: =ROUND($F42*[3]G!N$248,0) -> 0 | Q42: 0
A43: San Luis Pumping-Gen. Plant - Oper. - Joint | B43: San Luis Unit | D43: 0 | E43: 0 | F43: =[3]B!J318 -> 0 | G43: =ROUND($F43*[3]G!E$229,0) -> 0 | H43: 0 | I43: =ROUND($F43*[3]G!G$229,0) -> 0 | J43: =ROUND($F43*[3]G!H$229,0) -> 0 | K43: =ROUND($F43*[3]G!I$229,0) -> 0 | L43: =ROUND($F43*[3]G!J$229,0) -> 0 | M43: =ROUND($F43*[3]G!K$229,0) -> 0 | N43: =ROUND($F43*[3]G!L$229,0) -> 0 | O43: =ROUND($F43*[3]G!M$229,0) -> 0 | P43: =ROUND($F43*[3]G!N$229,0) -> 0 | Q43: 0
A44: San Luis Pumping-Gen. Plant - Maint. - Joint | B44: San Luis Unit | D44: 0 | E44: 0 | F44: =[3]B!J319 -> 0 | G44: =ROUND($F44*[3]G!E$230,0) -> 0 | H44: 0 | I44: =ROUND($F44*[3]G!G$230,0) -> 0 | J44: =ROUND($F44*[3]G!H$230,0) -> 0 | K44: =ROUND($F44*[3]G!I$230,0) -> 0 | L44: =ROUND($F44*[3]G!J$230,0) -> 0 | M44: =ROUND($F44*[3]G!K$230,0) -> 0 | N44: =ROUND($F44*[3]G!L$230,0) -> 0 | O44: =ROUND($F44*[3]G!M$230,0) -> 0 | P44: =ROUND($F44*[3]G!N$230,0) -> 0 | Q44: 0
A45: San Luis Switchyard - Operation - Joint | B45: San Luis Unit | D45: 0 | E45: 0 | F45: =[3]B!J320 -> 0 | G45: =ROUND($F45*[3]G!E$231,0) -> 0 | H45: 0 | I45: =ROUND($F45*[3]G!G$231,0) -> 0 | J45: =ROUND($F45*[3]G!H$231,0) -> 0 | K45: =ROUND($F45*[3]G!I$231,0) -> 0 | L45: =ROUND($F45*[3]G!J$231,0) -> 0 | M45: =ROUND($F45*[3]G!K$231,0) -> 0 | N45: =ROUND($F45*[3]G!L$231,0) -> 0 | O45: =ROUND($F45*[3]G!M$231,0) -> 0 | P45: =ROUND($F45*[3]G!N$231,0) -> 0 | Q45: 0
A46: San Luis Switchyard - Maintenance - Joint | B46: San Luis Unit | D46: 0 | E46: 0 | F46: =[3]B!J321 -> 0 | G46: =ROUND($F46*[3]G!E$232,0) -> 0 | H46: 0 | I46: =ROUND($F46*[3]G!G$232,0) -> 0 | J46: =ROUND($F46*[3]G!H$232,0) -> 0 | K46: =ROUND($F46*[3]G!I$232,0) -> 0 | L46: =ROUND($F46*[3]G!J$232,0) -> 0 | M46: =ROUND($F46*[3]G!K$232,0) -> 0 | N46: =ROUND($F46*[3]G!L$232,0) -> 0 | O46: =ROUND($F46*[3]G!M$232,0) -> 0 | P46: =ROUND($F46*[3]G!N$232,0) -> 0 | Q46: 0
A47: Shasta Dam and Reservoir | B47: Shasta Division | D47: 4252000 | E47: 1553000 | F47: =[3]B!J372 -> 5805000 | G47: =ROUND($F47*[3]G!E$274,0) -> 347720 | H47: 1776328 | I47: =ROUND($F47*[3]G!G$274,0) -> 41216 | J47: =ROUND($F47*[3]G!H$274,0) -> 0 | K47: =ROUND($F47*[3]G!I$274,0) -> 613589 | L47: =ROUND($F47*[3]G!J$274,0) -> 2359152 | M47: =ROUND($F47*[3]G!K$274,0) -> 0 | N47: =ROUND($F47*[3]G!L$274,0) -> 666995 | O47: =ROUND($F47*[3]G!M$274,0) -> 0 | P47: =ROUND($F47*[3]G!N$274,0) -> 0 | Q47: 0
A48: Spring Creek Tunnel | B48: Trinity River Division | D48: 75000 | E48: -5000 | F48: =[3]B!J422 -> 70000 | G48: =ROUND($F48*[3]G!E$311,0) -> 0 | H48: 0 | I48: =ROUND($F48*[3]G!G$311,0) -> 0 | J48: =ROUND($F48*[3]G!H$311,0) -> 0 | K48: =ROUND($F48*[3]G!I$311,0) -> 70000 | L48: =ROUND($F48*[3]G!J$311,0) -> 0 | M48: =ROUND($F48*[3]G!K$311,0) -> 0 | N48: =ROUND($F48*[3]G!L$311,0) -> 0 | O48: =ROUND($F48*[3]G!M$311,0) -> 0 | P48: =ROUND($F48*[3]G!N$311,0) -> 0 | Q48: 0
A49: Spring Creek Debris Dam | B49: Trinity River Division | D49: 577000 | E49: =F49-D49 -> -217000 | F49: =[3]B!J419 -> 360000 | G49: =ROUND($F49*[3]G!E$308,0) -> 21852 | H49: =F49-G49-SUM(I49:P49) -> 110952 | I49: =ROUND($F49*[3]G!G$308,0) -> 2196 | J49: =ROUND($F49*[3]G!H$308,0) -> 0 | K49: =ROUND($F49*[3]G!I$308,0) -> 37332 | L49: =ROUND($F49*[3]G!J$308,0) -> 146304 | M49: =ROUND($F49*[3]G!K$308,0) -> 0 | N49: =ROUND($F49*[3]G!L$308,0) -> 41364 | O49: =ROUND($F49*[3]G!M$308,0) -> 0 | P49: =ROUND($F49*[3]G!N$308,0) -> 0 | Q49: =F49-SUM(G49:P49) -> 0
A50: Stanislaus River Temp Management | B50: East Side Division | D50: 0 | E50: 0 | F50: =[3]B!J258 -> 0 | G50: =ROUND($F50*[3]G!E$155,0) -> 0 | H50: 0 | I50: =ROUND($F50*[3]G!G$155,0) -> 0 | J50: =ROUND($F50*[3]G!H$155,0) -> 0 | K50: =ROUND($F50*[3]G!I$155,0) -> 0 | L50: =ROUND($F50*[3]G!J$155,0) -> 0 | M50: =ROUND($F50*[3]G!K$155,0) -> 0 | N50: =ROUND($F50*[3]G!L$155,0) -> 0 | O50: =ROUND($F50*[3]G!M$155,0) -> 0 | P50: =ROUND($F50*[3]G!N$155,0) -> 0 | Q50: 0
A51: New Melones Long Term Operating Plan | B51: East Side Division | D51: 346000 | E51: -271000 | F51: =[3]B!J259 -> 75000 | G51: =ROUND($F51*[3]G!E$156,0) -> 4493 | H51: 22948 | I51: =ROUND($F51*[3]G!G$156,0) -> 533 | J51: =ROUND($F51*[3]G!H$156,0) -> 0 | K51: =ROUND($F51*[3]G!I$156,0) -> 7928 | L51: =ROUND($F51*[3]G!J$156,0) -> 30480 | M51: =ROUND($F51*[3]G!K$156,0) -> 0 | N51: =ROUND($F51*[3]G!L$156,0) -> 8618 | O51: =ROUND($F51*[3]G!M$156,0) -> 0 | P51: =ROUND($F51*[3]G!N$156,0) -> 0 | Q51: 0
A52: TCD Feasibility Study | B52: East Side Division | D52: 0 | E52: 0 | F52: =[3]B!J260 -> 0 | G52: =ROUND($F52*[3]G!E$157,0) -> 0 | H52: 0 | I52: =ROUND($F52*[3]G!G$157,0) -> 0 | J52: =ROUND($F52*[3]G!H$157,0) -> 0 | K52: =ROUND($F52*[3]G!I$157,0) -> 0 | L52: =ROUND($F52*[3]G!J$157,0) -> 0 | M52: =ROUND($F52*[3]G!K$157,0) -> 0 | N52: =ROUND($F52*[3]G!L$157,0) -> 0 | O52: =ROUND($F52*[3]G!M$157,0) -> 0 | P52: =ROUND($F52*[3]G!N$157,0) -> 0 | Q52: 0
A53: Trinity Dam and Clair Engle Lake | B53: Trinity River Division | D53: 522000 | E53: 1555000 | F53: =[3]B!J414 -> 2077000 | G53: =ROUND($F53*[3]G!E$304,0) -> 124412 | H53: 635562 | I53: =ROUND($F53*[3]G!G$304,0) -> 14747 | J53: =ROUND($F53*[3]G!H$304,0) -> 0 | K53: =ROUND($F53*[3]G!I$304,0) -> 219539 | L53: =ROUND($F53*[3]G!J$304,0) -> 844093 | M53: =ROUND($F53*[3]G!K$304,0) -> 0 | N53: =ROUND($F53*[3]G!L$304,0) -> 238647 | O53: =ROUND($F53*[3]G!M$304,0) -> 0 | P53: =ROUND($F53*[3]G!N$304,0) -> 0 | Q53: 0
A54: Storage O&M | D54: 22312000 | E54: =SUM(E21:E53) -> 4593000 | F54: =SUM(F21:F53) -> 27482000 | G54: 4135114 | H54: 13103801 | I54: 304620 | J54: 0 | K54: 1784515 | L54: 6644100 | M54: 0 | N54: 1483514 | O54: 26336 | P54: 0 | Q54: 0
A56: New Melones Resource Complex - Life Safety | B56: East Side Division | D56: 20000 | E56: =F56-D56 -> -20000 | F56: =[3]B!J269 -> 0 | G56: =ROUND($F56*[3]G!E$166,0) -> 0 | H56: =F56-G56-SUM(I56:P56) -> 0 | I56: =ROUND($F56*[3]G!G$166,0) -> 0 | J56: =ROUND($F56*[3]G!H$166,0) -> 0 | K56: =ROUND($F56*[3]G!I$166,0) -> 0 | L56: =ROUND($F56*[3]G!J$166,0) -> 0 | M56: =ROUND($F56*[3]G!K$166,0) -> 0 | N56: =ROUND($F56*[3]G!L$166,0) -> 0 | O56: =ROUND($F56*[3]G!M$166,0) -> 0 | P56: =ROUND($F56*[3]G!N$166,0) -> 0 | Q56: =F56-SUM(G56:P56) -> 0
A57: New Melones ADA Guidelines | B57: East Side Division | D57: 0 | E57: 0 | F57: =[3]B!J270 -> 0 | G57: =ROUND($F57*[3]G!E$166,0) -> 0 | H57: 0 | I57: =ROUND($F57*[3]G!G$166,0) -> 0 | J57: =ROUND($F57*[3]G!H$166,0) -> 0 | K57: =ROUND($F57*[3]G!I$166,0) -> 0 | L57: =ROUND($F57*[3]G!J$166,0) -> 0 | M57: =ROUND($F57*[3]G!K$166,0) -> 0 | N57: =ROUND($F57*[3]G!L$166,0) -> 0 | O57: =ROUND($F57*[3]G!M$166,0) -> 0 | P57: =ROUND($F57*[3]G!N$166,0) -> 0 | Q57: 0
A58: New Melones Safety Barriers and Boundary ID | B58: East Side Division | D58: 0 | E58: 0 | F58: =[3]B!J261 -> 0 | G58: =ROUND($F58*[3]G!E$166,0) -> 0 | H58: 0 | I58: =ROUND($F58*[3]G!G$166,0) -> 0 | J58: =ROUND($F58*[3]G!H$166,0) -> 0 | K58: =ROUND($F58*[3]G!I$166,0) -> 0 | L58: =ROUND($F58*[3]G!J$166,0) -> 0 | M58: =ROUND($F58*[3]G!K$166,0) -> 0 | N58: =ROUND($F58*[3]G!L$166,0) -> 0 | O58: =ROUND($F58*[3]G!M$166,0) -> 0 | P58: =ROUND($F58*[3]G!N$166,0) -> 0 | Q58: 0
A59: Hydrilla Detection and Eradication | B59: San Luis Unit | D59: 12000 | E59: 0 | F59: =[3]B!J350 -> 12000 | G59: =ROUND($F59*[3]G!E$166,0) -> 0 | H59: 0 | I59: =ROUND($F59*[3]G!G$166,0) -> 0 | J59: =ROUND($F59*[3]G!H$166,0) -> 0 | K59: =ROUND($F59*[3]G!I$166,0) -> 0 | L59: =ROUND($F59*[3]G!J$166,0) -> 0 | M59: =ROUND($F59*[3]G!K$166,0) -> 0 | N59: =ROUND($F59*[3]G!L$166,0) -> 0 | O59: =ROUND($F59*[3]G!M$166,0) -> 0 | P59: =ROUND($F59*[3]G!N$166,0) -> 12000 | Q59: =F59-SUM(G59:P59) -> 0
A60: San Luis Unit ADA Guidelines | B60: San Luis Unit | D60: 3000 | E60: 0 | F60: =[3]B!J351 -> 3000 | G60: =ROUND($F60*[3]G!E$166,0) -> 0 | H60: 0 | I60: =ROUND($F60*[3]G!G$166,0) -> 0 | J60: =ROUND($F60*[3]G!H$166,0) -> 0 | K60: =ROUND($F60*[3]G!I$166,0) -> 0 | L60: =ROUND($F60*[3]G!J$166,0) -> 0 | M60: =ROUND($F60*[3]G!K$166,0) -> 0 | N60: =ROUND($F60*[3]G!L$166,0) -> 0 | O60: =ROUND($F60*[3]G!M$166,0) -> 0 | P60: =ROUND($F60*[3]G!N$166,0) -> 3000 | Q60: 0
A61: San Felipe - ADA Guidelines | B61: San Felipe Unit | D61: 3000 | E61: 0 | F61: =[3]B!J452 -> 3000 | G61: =ROUND($F61*[3]G!E$335,0) -> 0 | H61: 0 | I61: =ROUND($F61*[3]G!G$335,0) -> 0 | J61: =ROUND($F61*[3]G!H$335,0) -> 0 | K61: =ROUND($F61*[3]G!I$335,0) -> 0 | L61: =ROUND($F61*[3]G!J$335,0) -> 0 | M61: =ROUND($F61*[3]G!K$335,0) -> 0 | N61: =ROUND($F61*[3]G!L$335,0) -> 0 | O61: =ROUND($F61*[3]G!M$335,0) -> 0 | P61: =ROUND($F61*[3]G!N$335,0) -> 3000 | Q61: 0
A62: Shasta Division ADA Guidelines | B62: Shasta Division | D62: 0 | E62: 0 | F62: =[3]B!J389 -> 0 | G62: =ROUND($F62*[3]G!E$291,0) -> 0 | H62: 0 | I62: =ROUND($F62*[3]G!G$291,0) -> 0 | J62: =ROUND($F62*[3]G!H$291,0) -> 0 | K62: =ROUND($F62*[3]G!I$291,0) -> 0 | L62: =ROUND($F62*[3]G!J$291,0) -> 0 | M62: =ROUND($F62*[3]G!K$291,0) -> 0 | N62: =ROUND($F62*[3]G!L$291,0) -> 0 | O62: =ROUND($F62*[3]G!M$291,0) -> 0 | P62: =ROUND($F62*[3]G!N$291,0) -> 0 | Q62: 0
A63: Shasta Dam/Vista House/Quonset - Life Safety | B63: Shasta Division | D63: 0 | E63: 0 | F63: =[3]B!J391 -> 0 | G63: =ROUND($F63*[3]G!E$291,0) -> 0 | H63: 0 | I63: =ROUND($F63*[3]G!G$291,0) -> 0 | J63: =ROUND($F63*[3]G!H$291,0) -> 0 | K63: =ROUND($F63*[3]G!I$291,0) -> 0 | L63: =ROUND($F63*[3]G!J$291,0) -> 0 | M63: =ROUND($F63*[3]G!K$291,0) -> 0 | N63: =ROUND($F63*[3]G!L$291,0) -> 0 | O63: =ROUND($F63*[3]G!M$291,0) -> 0 | P63: =ROUND($F63*[3]G!N$291,0) -> 0 | Q63: 0
A64: Trinity River - Life Safety | B64: Trinity River Division | D64: 0 | E64: 0 | F64: =[3]B!J427 -> 0 | G64: =ROUND($F64*[3]G!E$316,0) -> 0 | H64: 0 | I64: =ROUND($F64*[3]G!G$316,0) -> 0 | J64: =ROUND($F64*[3]G!H$316,0) -> 0 | K64: =ROUND($F64*[3]G!I$316,0) -> 0 | L64: =ROUND($F64*[3]G!J$316,0) -> 0 | M64: =ROUND($F64*[3]G!K$316,0) -> 0 | N64: =ROUND($F64*[3]G!L$316,0) -> 0 | O64: =ROUND($F64*[3]G!M$316,0) -> 0 | P64: =ROUND($F64*[3]G!N$316,0) -> 0 | Q64: 0
A65: Life Safety Code Corrections | D65: 38000 | E65: =SUM(E56:E64) -> -20000 | F65: 18000 | G65: 0 | H65: 0 | I65: 0 | J65: 0 | K65: 0 | L65: 0 | M65: 0 | N65: 0 | O65: 0 | P65: 18000 | Q65: 0
A67: Folsom Public Safety, Protection of Land | B67: American River Division | D67: 3076000 | E67: =F67-D67 -> -116000 | F67: =[3]B!J72 -> 2960000 | G67: =ROUND($F67*[3]G!E$49,0) -> 0 | H67: =F67-G67-SUM(I67:P67) -> 0 | I67: =ROUND($F67*[3]G!G$49,0) -> 0 | J67: =ROUND($F67*[3]G!H$49,0) -> 0 | K67: =ROUND($F67*[3]G!I$49,0) -> 0 | L67: =ROUND($F67*[3]G!J$49,0) -> 0 | M67: =ROUND($F67*[3]G!K$49,0) -> 0 | N67: =ROUND($F67*[3]G!L$49,0) -> 0 | O67: =ROUND($F67*[3]G!M$49,0) -> 0 | P67: =ROUND($F67*[3]G!N$49,0) -> 2960000 | Q67: =F67-SUM(G67:P67) -> 0
A68: Emergency Management | B68: Friant Division | D68: 13000 | E68: =F68-D68 -> 0 | F68: =[3]B!J170 -> 13000 | G68: =ROUND($F68*[3]G!E$196,0) -> 0 | H68: =F68-G68-SUM(I68:P68) -> 0 | I68: =ROUND($F68*[3]G!G$196,0) -> 0 | J68: =ROUND($F68*[3]G!H$196,0) -> 0 | K68: =ROUND($F68*[3]G!I$196,0) -> 0 | L68: =ROUND($F68*[3]G!J$196,0) -> 0 | M68: =ROUND($F68*[3]G!K$196,0) -> 0 | N68: =ROUND($F68*[3]G!L$196,0) -> 0 | O68: =ROUND($F68*[3]G!M$196,0) -> 0 | P68: =ROUND($F68*[3]G!N$196,0) -> 13000 | Q68: =F68-SUM(G68:P68) -> 0
A69: Handicap Accessibility | B69: Friant Division | D69: 61000 | E69: =F69-D69 -> 0 | F69: =[3]B!J172 -> 61000 | G69: =ROUND($F69*[3]G!E$198,0) -> 0 | H69: =F69-G69-SUM(I69:P69) -> 0 | I69: =ROUND($F69*[3]G!G$198,0) -> 0 | J69: =ROUND($F69*[3]G!H$198,0) -> 0 | K69: =ROUND($F69*[3]G!I$198,0) -> 0 | L69: =ROUND($F69*[3]G!J$198,0) -> 0 | M69: =ROUND($F69*[3]G!K$198,0) -> 0 | N69: =ROUND($F69*[3]G!L$198,0) -> 0 | O69: =ROUND($F69*[3]G!M$198,0) -> 0 | P69: =ROUND($F69*[3]G!N$198,0) -> 61000 | Q69: =F69-SUM(G69:P69) -> 0
A70: Public Access and Safety Program | D70: 3150000 | E70: =SUM(E67:E69) -> -116000 | F70: 3034000 | G70: 0 | H70: 0 | I70: 0 | J70: 0 | K70: 0 | L70: 0 | M70: 0 | N70: 0 | O70: 0 | P70: 3034000 | Q70: =F70-SUM(G70:P70) -> 0
A72: Bureau of Reclamation | D72: 25500000 | E72: =E54+E65+E70 -> 4457000 | F72: 30534000 | G72: 4135114 | H72: 13103801 | I72: 304620 | J72: 0 | K72: 1784515 | L72: 6644100 | M72: 0 | N72: 1483514 | O72: 26336 | P72: 3052000 | Q72: =F72-SUM(G72:P72) -> 0
A74: Black Butte Dam and Reservoir | B74: Corps of Engineers | D74: 2611762.349 | E74: =F74-D74 -> 91411.68223 | F74: =[3]C!J21 -> 2703174.032 | G74: =ROUND($F74*[3]G!E$394,0) -> 156784 | H74: =F74-G74-SUM(I74:O74) -> 929892.0317 | I74: =ROUND($F74*[3]G!G$394,0) -> 0 | J74: =ROUND($F74*[3]G!H$394,0) -> 0 | K74: =ROUND($F74*[3]G!I$394,0) -> 0 | L74: =ROUND($F74*[3]G!J$394,0) -> 1616498 | M74: =ROUND($F74*[3]G!K$394,0) -> 0 | N74: =ROUND($F74*[3]G!L$394,0) -> 0 | O74: =ROUND($F74*[3]G!M$394,0) -> 0 | P74: =ROUND($F74*[3]G!N$394,0) -> 0 | Q74: =F74-SUM(G74:P74) -> 0
A75: Buchanan Dam and Eastman Lake | B75: Corps of Engineers | D75: 2227342.144 | E75: =F75-D75 -> 77956.97505 | F75: =[3]C!J38 -> 2305299.119 | G75: =ROUND($F75*[3]G!E$395,0) -> 0 | H75: =F75-G75-SUM(I75:O75) -> 2305299.119 | I75: =ROUND($F75*[3]G!G$395,0) -> 0 | J75: =ROUND($F75*[3]G!H$395,0) -> 0 | K75: =ROUND($F75*[3]G!I$395,0) -> 0 | L75: =ROUND($F75*[3]G!J$395,0) -> 0 | M75: =ROUND($F75*[3]G!K$395,0) -> 0 | N75: =ROUND($F75*[3]G!L$395,0) -> 0 | O75: =ROUND($F75*[3]G!M$395,0) -> 0 | P75: =ROUND($F75*[3]G!N$395,0) -> 0 | Q75: =F75-SUM(G75:P75) -> 0
A76: Hidden Dam and Hensley Lake | B76: Corps of Engineers | D76: 2531435.739 | E76: =F76-D76 -> 88600.25088 | F76: =[3]C!J51 -> 2620035.99 | G76: =ROUND($F76*[3]G!E$396,0) -> 0 | H76: =F76-G76-SUM(I76:O76) -> 2620035.99 | I76: =ROUND($F76*[3]G!G$396,0) -> 0 | J76: =ROUND($F76*[3]G!H$396,0) -> 0 | K76: =ROUND($F76*[3]G!I$396,0) -> 0 | L76: =ROUND($F76*[3]G!J$396,0) -> 0 | M76: =ROUND($F76*[3]G!K$396,0) -> 0 | N76: =ROUND($F76*[3]G!L$396,0) -> 0 | O76: =ROUND($F76*[3]G!M$396,0) -> 0 | P76: =ROUND($F76*[3]G!N$396,0) -> 0 | Q76: =F76-SUM(G76:P76) -> 0
A77: Corps of Engineers | D77: 7370540.233 | E77: =SUM(E74:E76) -> 257968.9082 | F77: 7628509.141 | G77: 156784 | H77: 5855227.141 | I77: 0 | J77: 0 | K77: 0 | L77: 1616498 | M77: 0 | N77: 0 | O77: 0 | P77: 0 | Q77: =F77-SUM(G77:P77) -> 0
A79: Total Storage O&M | D79: 32870540.23 | E79: =E72+E77 -> 4714968.908 | F79: =F72+F77 -> 38162509.14 | G79: 4291898 | H79: 18959028.14 | I79: 304620 | J79: 0 | K79: 1784515 | L79: 8260598 | M79: 0 | N79: 1483514 | O79: 26336 | P79: =P72+P77 -> 3052000 | Q79: =F79-SUM(G79:P79) -> 0
A80: Transfer to Fish and Wildlife O&M | D80: -265773 | E80: =E73+E78 -> 0 | F80: =I80 -> -304620 | I80: =-I79 -> -304620 | Q80: 0
A81: Transfer to Recreation O&M | D81: 0 | E81: 4806380.59 | F81: =J81 -> 0 | J81: =-J79 -> 0 | Q81: 0
A82: Transfer to Power O&M | D82: -1467566 | E82: 77956.97505 | F82: =K82 -> -1784515 | K82: =-K79 -> -1784515 | Q82: 0
A83: Transfer to Flood Control O&M | D83: -7036190 | E83: 4894980.841 | F83: =L83 -> -8260598 | L83: =-L79 -> -8260598 | Q83: 0
A84: Transfer to Navigation O&M | D84: 0 | E84: 335925.8832 | F84: =M84 -> 0 | M84: =-M79 -> 0 | Q84: 0
A85: Transfer to Water Quality Improvement O&M | D85: -1155371 | E85: 4894980.841 | F85: =N85 -> -1483514 | N85: =-N79 -> -1483514 | Q85: 0
A86: Transfer to State of California O&M | D86: -23178 | E86: 5050894.791 | F86: =O86 -> -26336 | O86: =-O79 -> -26336 | Q86: 0
A87: Transfer to Non-Reimbursable Bureau Prog. | D87: -3188000 | E87: 4894980.841 | F87: =P87 -> -3052000 | P87: =-P79 -> -3052000 | Q87: 0
A89: Storage O&M - M&I and Irrigation | D89: 19734462.23 | E89: 4972937.816 | F89: =SUM(F79:F87) -> 23250926.14 | G89: 4291898 | H89: 18959028.14 | I89: 0 | J89: 0 | K89: 0 | L89: 0 | M89: 0 | N89: 0 | O89: 0 | P89: 0 | Q89: =F89-SUM(G89:P89) -> 0
A93: Table 6. Allocated Operation and Maintenance Costs, Fiscal Year 2023 | P93: Sheet 2 of 11
A94: Central Valley Project
A95: California
P97: Non-
D98: Budget Year | E98: =E$16 -> Increase | F98: =F$16 -> Budget Year | I98: =I$16 -> Fish and | L98: =L$16 -> Flood | N98: =N$16 -> Water Quality | O98: =O$16 -> State of | P98: Reimbursable
A99: Component and Feature | B99: =B$17 -> Division or Unit | D99: 2021 | E99: =E$17 -> (Decrease) | F99: 2023 | G99: M&I Water | H99: Irrigation | I99: Wildlife | J99: Recreation | K99: Power | L99: Control | M99: Navigation | N99: Improvement | O99: California | P99: Program
A101: CONVEYANCE O&M
A103: Corning Canal | B103: Sacramento River Division | D103: 0 | E103: =F103-D103 -> 0 | F103: =[3]B!J291 -> 0 | G103: =ROUND($F103*[3]G!E$208,0) -> 0 | H103: =F103-G103-SUM(I103:P103) -> 0 | I103: =ROUND($F103*[3]G!G$208,0) -> 0 | J103: =ROUND($F103*[3]G!H$208,0) -> 0 | K103: =ROUND($F103*[3]G!I$208,0) -> 0 | L103: =ROUND($F103*[3]G!J$208,0) -> 0 | M103: =ROUND($F103*[3]G!K$208,0) -> 0 | N103: =ROUND($F103*[3]G!L$208,0) -> 0 | O103: =ROUND($F103*[3]G!M$208,0) -> 0 | P103: =ROUND($F103*[3]G!N$208,0) -> 0 | Q103: =F103-SUM(G103:P103) -> 0
A104: South Delta Hydrodynamics Fish Inv | B104: Delta Division | D104: 0 | E104: 0 | F104: =[3]B!J224 -> 0 | G104: =ROUND($F104*[3]G!E$116,0) -> 0 | H104: 0 | I104: =ROUND($F104*[3]G!G$116,0) -> 0 | J104: =ROUND($F104*[3]G!H$116,0) -> 0 | K104: =ROUND($F104*[3]G!I$116,0) -> 0 | L104: =ROUND($F104*[3]G!J$116,0) -> 0 | M104: =ROUND($F104*[3]G!K$116,0) -> 0 | N104: =ROUND($F104*[3]G!L$116,0) -> 0 | O104: =ROUND($F104*[3]G!M$116,0) -> 0 | P104: =ROUND($F104*[3]G!N$116,0) -> 0 | Q104: 0
A105: Hydrologic and Operational Modeling | B105: Delta Division | D105: 32000 | E105: =F105-D105 -> -32000 | F105: =[3]B!J232 -> 0 | G105: =ROUND($F105*[3]G!E127,0) -> 0 | H105: 0 | I105: =ROUND($F105*[3]G!G127,0) -> 0 | J105: =ROUND($F105*[3]G!H127,0) -> 0 | K105: =ROUND($F105*[3]G!I127,0) -> 0 | L105: =ROUND($F105*[3]G!J127,0) -> 0 | M105: =ROUND($F105*[3]G!K127,0) -> 0 | N105: =ROUND($F105*[3]G!L127,0) -> 0 | O105: =ROUND($F105*[3]G!M127,0) -> 0 | P105: =ROUND($F105*[3]G!N127,0) -> 0 | Q105: 0
A106: DMC Subsidence Study | B106: Delta Division | D106: 5000 | E106: =F106-D106 -> 0 | F106: =[3]B!J219 -> 5000 | G106: =ROUND($F106*[3]G!E128,0) -> 0 | H106: 0 | I106: =ROUND($F106*[3]G!G128,0) -> 0 | J106: =ROUND($F106*[3]G!H128,0) -> 0 | K106: =ROUND($F106*[3]G!I128,0) -> 0 | L106: =ROUND($F106*[3]G!J128,0) -> 0 | M106: =ROUND($F106*[3]G!K128,0) -> 0 | N106: =ROUND($F106*[3]G!L128,0) -> 0 | O106: =ROUND($F106*[3]G!M128,0) -> 0 | P106: =ROUND($F106*[3]G!N128,0) -> 5000 | Q106: 0
A107: DMC Subsidence XM | B107: Delta Division | D107: 0 | E107: =F107-D107 -> 0 | F107: =[3]B!J220 -> 0 | G107: =ROUND($F107*[3]G!E129,0) -> 0 | H107: 0 | I107: =ROUND($F107*[3]G!G129,0) -> 0 | J107: =ROUND($F107*[3]G!H129,0) -> 0 | K107: =ROUND($F107*[3]G!I129,0) -> 0 | L107: =ROUND($F107*[3]G!J129,0) -> 0 | M107: =ROUND($F107*[3]G!K129,0) -> 0 | N107: =ROUND($F107*[3]G!L129,0) -> 0 | O107: =ROUND($F107*[3]G!M129,0) -> 0 | P107: =ROUND($F107*[3]G!N129,0) -> 0 | Q107: 0
A108: DMC Regulatory Actions | B108: Delta Division | D108: 145000 | E108: =F108-D108 -> -55000 | F108: =[3]B!J210 -> 90000 | G108: =ROUND($F108*[3]G!E$115,0) -> 4725 | H108: 45396 | I108: =ROUND($F108*[3]G!G$115,0) -> 16596 | J108: =ROUND($F108*[3]G!H$115,0) -> 0 | K108: =ROUND($F108*[3]G!I$115,0) -> 20934 | L108: =ROUND($F108*[3]G!J$115,0) -> 0 | M108: =ROUND($F108*[3]G!K$115,0) -> 0 | N108: =ROUND($F108*[3]G!L$115,0) -> 0 | O108: =ROUND($F108*[3]G!M$115,0) -> 2349 | P108: =ROUND($F108*[3]G!N$115,0) -> 0 | Q108: 0
A109: Contra Loma Dam | B109: Delta Division | D109: 0 | E109: =F109-D109 -> 0 | F109: 0 | G109: =ROUND($F109*[3]G!E$124,0) -> 0 | H109: 0 | I109: =ROUND($F109*[3]G!G$124,0) -> 0 | J109: =ROUND($F109*[3]G!H$124,0) -> 0 | K109: =ROUND($F109*[3]G!I$124,0) -> 0 | L109: =ROUND($F109*[3]G!J$124,0) -> 0 | M109: =ROUND($F109*[3]G!K$124,0) -> 0 | N109: =ROUND($F109*[3]G!L$124,0) -> 0 | O109: =ROUND($F109*[3]G!M$124,0) -> 0 | P109: =ROUND($F109*[3]G!N$124,0) -> 0 | Q109: 0
A110: Folsom South Canal | B110: American River Division | D110: 400000 | E110: 200000 | F110: =[3]B!J59 -> 600000 | G110: =ROUND($F110*[3]G!E$37,0) -> 600000 | H110: 0 | I110: =ROUND($F110*[3]G!G$37,0) -> 0 | J110: =ROUND($F110*[3]G!H$37,0) -> 0 | K110: =ROUND($F110*[3]G!I$37,0) -> 0 | L110: =ROUND($F110*[3]G!J$37,0) -> 0 | M110: =ROUND($F110*[3]G!K$37,0) -> 0 | N110: =ROUND($F110*[3]G!L$37,0) -> 0 | O110: =ROUND($F110*[3]G!M$37,0) -> 0 | P110: =ROUND($F110*[3]G!N$37,0) -> 0 | Q110: 0
A111: Friant-Kern Canal | B111: Friant Division | D111: 40000 | E111: -31000 | F111: =[3]B!J154 -> 9000 | G111: =ROUND($F111*[3]G!E$180,0) -> 643 | H111: 8357 | I111: =ROUND($F111*[3]G!G$180,0) -> 0 | J111: =ROUND($F111*[3]G!H$180,0) -> 0 | K111: =ROUND($F111*[3]G!I$180,0) -> 0 | L111: =ROUND($F111*[3]G!J$180,0) -> 0 | M111: =ROUND($F111*[3]G!K$180,0) -> 0 | N111: =ROUND($F111*[3]G!L$180,0) -> 0 | O111: =ROUND($F111*[3]G!M$180,0) -> 0 | P111: =ROUND($F111*[3]G!N$180,0) -> 0 | Q111: 0
A112: Funks Dam | B112: Sacramento River Division | D112: 0 | E112: 0 | F112: =[3]B!J290 -> 0 | G112: =ROUND($F112*[3]G!E$207,0) -> 0 | H112: 0 | I112: =ROUND($F112*[3]G!G$207,0) -> 0 | J112: =ROUND($F112*[3]G!H$207,0) -> 0 | K112: =ROUND($F112*[3]G!I$207,0) -> 0 | L112: =ROUND($F112*[3]G!J$207,0) -> 0 | M112: =ROUND($F112*[3]G!K$207,0) -> 0 | N112: =ROUND($F112*[3]G!L$207,0) -> 0 | O112: =ROUND($F112*[3]G!M$207,0) -> 0 | P112: =ROUND($F112*[3]G!N$207,0) -> 0 | Q112: 0
A113: Little Panoche Cr. Detention Dam - Oper. - Joint | B113: San Luis Unit | D113: 0 | E113: 0 | F113: =[3]B!J332 -> 0 | G113: =ROUND($F113*[3]G!E$243,0) -> 0 | H113: 0 | I113: =ROUND($F113*[3]G!G$243,0) -> 0 | J113: =ROUND($F113*[3]G!H$243,0) -> 0 | K113: =ROUND($F113*[3]G!I$243,0) -> 0 | L113: =ROUND($F113*[3]G!J$243,0) -> 0 | M113: =ROUND($F113*[3]G!K$243,0) -> 0 | N113: =ROUND($F113*[3]G!L$243,0) -> 0 | O113: =ROUND($F113*[3]G!M$243,0) -> 0 | P113: =ROUND($F113*[3]G!N$243,0) -> 0 | Q113: 0
A114: Little Panoche Cr. Detention Dam - Maint. - Joint | B114: San Luis Unit | D114: 0 | E114: 0 | F114: =[3]B!J333 -> 0 | G114: =ROUND($F114*[3]G!E$244,0) -> 0 | H114: 0 | I114: =ROUND($F114*[3]G!G$244,0) -> 0 | J114: =ROUND($F114*[3]G!H$244,0) -> 0 | K114: =ROUND($F114*[3]G!I$244,0) -> 0 | L114: =ROUND($F114*[3]G!J$244,0) -> 0 | M114: =ROUND($F114*[3]G!K$244,0) -> 0 | N114: =ROUND($F114*[3]G!L$244,0) -> 0 | O114: =ROUND($F114*[3]G!M$244,0) -> 0 | P114: =ROUND($F114*[3]G!N$244,0) -> 0 | Q114: 0
A115: Arroyo Pasajero | B115: San Luis Unit | D115: 0 | E115: 5000 | F115: =[3]B!J339 -> 5000 | G115: =ROUND($F115*[3]G!E$250,0) -> 108 | H115: 4892 | I115: =ROUND($F115*[3]G!G$250,0) -> 0 | J115: =ROUND($F115*[3]G!H$250,0) -> 0 | K115: =ROUND($F115*[3]G!I$250,0) -> 0 | L115: =ROUND($F115*[3]G!J$250,0) -> 0 | M115: =ROUND($F115*[3]G!K$250,0) -> 0 | N115: =ROUND($F115*[3]G!L$250,0) -> 0 | O115: =ROUND($F115*[3]G!M$250,0) -> 0 | P115: =ROUND($F115*[3]G!N$250,0) -> 0 | Q115: 0
A116: Los Banos Creek Detention Dam - Oper. - Joint | B116: San Luis Unit | D116: 0 | E116: 1000 | F116: =[3]B!J330 -> 1000 | G116: =ROUND($F116*[3]G!E$241,0) -> 6 | H116: 234 | I116: =ROUND($F116*[3]G!G$241,0) -> 0 | J116: =ROUND($F116*[3]G!H$241,0) -> 73 | K116: =ROUND($F116*[3]G!I$241,0) -> 0 | L116: =ROUND($F116*[3]G!J$241,0) -> 687 | M116: =ROUND($F116*[3]G!K$241,0) -> 0 | N116: =ROUND($F116*[3]G!L$241,0) -> 0 | O116: =ROUND($F116*[3]G!M$241,0) -> 0 | P116: =ROUND($F116*[3]G!N$241,0) -> 0 | Q116: 0
A117: Los Banos Creek Detention Dam - Maint. - Joint | B117: San Luis Unit | D117: 25000 | E117: -25000 | F117: =[3]B!J331 -> 0 | G117: =ROUND($F117*[3]G!E$242,0) -> 0 | H117: 0 | I117: =ROUND($F117*[3]G!G$242,0) -> 0 | J117: =ROUND($F117*[3]G!H$242,0) -> 0 | K117: =ROUND($F117*[3]G!I$242,0) -> 0 | L117: =ROUND($F117*[3]G!J$242,0) -> 0 | M117: =ROUND($F117*[3]G!K$242,0) -> 0 | N117: =ROUND($F117*[3]G!L$242,0) -> 0 | O117: =ROUND($F117*[3]G!M$242,0) -> 0 | P117: =ROUND($F117*[3]G!N$242,0) -> 0 | Q117: 0
A118: Madera Canal | B118: Friant Division | D118: 13000 | E118: -5000 | F118: =[3]B!J153 -> 8000 | G118: =ROUND($F118*[3]G!E$179,0) -> 0 | H118: 8000 | I118: =ROUND($F118*[3]G!G$179,0) -> 0 | J118: =ROUND($F118*[3]G!H$179,0) -> 0 | K118: =ROUND($F118*[3]G!I$179,0) -> 0 | L118: =ROUND($F118*[3]G!J$179,0) -> 0 | M118: =ROUND($F118*[3]G!K$179,0) -> 0 | N118: =ROUND($F118*[3]G!L$179,0) -> 0 | O118: =ROUND($F118*[3]G!M$179,0) -> 0 | P118: =ROUND($F118*[3]G!N$179,0) -> 0 | Q118: 0
A119: Mendota Pool | B119: Friant Division | D119: 0 | E119: 0 | F119: =[3]B!J155 -> 0 | G119: =ROUND($F119*[3]G!E$181,0) -> 0 | H119: 0 | I119: =ROUND($F119*[3]G!G$181,0) -> 0 | J119: =ROUND($F119*[3]G!H$181,0) -> 0 | K119: =ROUND($F119*[3]G!I$181,0) -> 0 | L119: =ROUND($F119*[3]G!M$181,0) -> 0 | M119: =ROUND($F119*[3]G!K$181,0) -> 0 | N119: =ROUND($F119*[3]G!L$181,0) -> 0 | O119: =ROUND($F119*[3]G!M$181,0) -> 0 | P119: =ROUND($F119*[3]G!N$181,0) -> 0 | Q119: 0
A120: O'Neill Dam and Reservoir - Oper. - Joint | B120: San Luis Unit | D120: 0 | E120: 0 | F120: =[3]B!J322 -> 0 | G120: =ROUND($F120*[3]G!E$233,0) -> 0 | H120: 0 | I120: =ROUND($F120*[3]G!G$233,0) -> 0 | J120: =ROUND($F120*[3]G!H$233,0) -> 0 | K120: =ROUND($F120*[3]G!I$233,0) -> 0 | L120: =ROUND($F120*[3]G!J$233,0) -> 0 | M120: =ROUND($F120*[3]G!K$233,0) -> 0 | N120: =ROUND($F120*[3]G!L$233,0) -> 0 | O120: =ROUND($F120*[3]G!M$233,0) -> 0 | P120: =ROUND($F120*[3]G!N$233,0) -> 0 | Q120: 0
A121: O'Neill Dam and Reservoir - Maint. - Joint | B121: San Luis Unit | D121: 0 | E121: 0 | F121: =[3]B!J323 -> 0 | G121: =ROUND($F121*[3]G!E$234,0) -> 0 | H121: 0 | I121: =ROUND($F121*[3]G!G$234,0) -> 0 | J121: =ROUND($F121*[3]G!H$234,0) -> 0 | K121: =ROUND($F121*[3]G!I$234,0) -> 0 | L121: =ROUND($F121*[3]G!J$234,0) -> 0 | M121: =ROUND($F121*[3]G!K$234,0) -> 0 | N121: =ROUND($F121*[3]G!L$234,0) -> 0 | O121: =ROUND($F121*[3]G!M$234,0) -> 0 | P121: =ROUND($F121*[3]G!N$234,0) -> 0 | Q121: 0
A122: Red Bluff Diversion Dam | B122: Sacramento River Division | D122: 0 | E122: 0 | F122: =[3]B!J289 -> 0 | G122: =ROUND($F122*[3]G!E$206,0) -> 0 | H122: 0 | I122: =ROUND($F122*[3]G!G$206,0) -> 0 | J122: =ROUND($F122*[3]G!H$206,0) -> 0 | K122: =ROUND($F122*[3]G!I$206,0) -> 0 | L122: =ROUND($F122*[3]G!J$206,0) -> 0 | M122: =ROUND($F122*[3]G!K$206,0) -> 0 | N122: =ROUND($F122*[3]G!L$206,0) -> 0 | O122: =ROUND($F122*[3]G!M$206,0) -> 0 | P122: =ROUND($F122*[3]G!N$206,0) -> 0 | Q122: 0
A123: Life Safety Code Corrections | B123: Sacramento River Division | D123: 0 | E123: 0 | F123: =[3]B!J303 -> 0 | G123: =ROUND($F123*[3]G!E$219,0) -> 0 | H123: 0 | I123: =ROUND($F123*[3]G!G$219,0) -> 0 | J123: =ROUND($F123*[3]G!H$219,0) -> 0 | K123: =ROUND($F123*[3]G!I$219,0) -> 0 | L123: =ROUND($F123*[3]G!J$219,0) -> 0 | M123: =ROUND($F123*[3]G!K$219,0) -> 0 | N123: =ROUND($F123*[3]G!L$219,0) -> 0 | O123: =ROUND($F123*[3]G!M$219,0) -> 0 | P123: =ROUND($F123*[3]G!N$219,0) -> 0 | Q123: 0
A124: ADA Guidelines | B124: Delta Division | D124: 11000 | E124: -6000 | F124: =[3]B!J238 -> 5000 | G124: =ROUND($F124*[3]G!E$142,0) -> 0 | H124: 0 | I124: =ROUND($F124*[3]G!G$142,0) -> 0 | J124: =ROUND($F124*[3]G!H$142,0) -> 0 | K124: =ROUND($F124*[3]G!I$142,0) -> 0 | L124: =ROUND($F124*[3]G!J$142,0) -> 0 | M124: =ROUND($F124*[3]G!K$142,0) -> 0 | N124: =ROUND($F124*[3]G!L$142,0) -> 0 | O124: =ROUND($F124*[3]G!M$142,0) -> 0 | P124: =ROUND($F124*[3]G!N$142,0) -> 5000 | Q124: 0
A125: Emergency Management | B125: Delta Division | D125: 4000 | E125: 6000 | F125: =[3]B!J239 -> 10000 | G125: =ROUND($F125*[3]G!E$142,0) -> 0 | H125: 0 | I125: =ROUND($F125*[3]G!G$142,0) -> 0 | J125: =ROUND($F125*[3]G!H$142,0) -> 0 | K125: =ROUND($F125*[3]G!I$142,0) -> 0 | L125: =ROUND($F125*[3]G!J$142,0) -> 0 | M125: =ROUND($F125*[3]G!K$142,0) -> 0 | N125: =ROUND($F125*[3]G!L$142,0) -> 0 | O125: =ROUND($F125*[3]G!M$142,0) -> 0 | P125: =ROUND($F125*[3]G!N$142,0) -> 10000 | Q125: 0
A126: San Luis Canal - Operation - Joint | B126: San Luis Unit | D126: 0 | E126: 0 | F126: =[3]B!J328 -> 0 | G126: =ROUND($F126*[3]G!E$239,0) -> 0 | H126: 0 | I126: =ROUND($F126*[3]G!G$239,0) -> 0 | J126: =ROUND($F126*[3]G!H$239,0) -> 0 | K126: =ROUND($F126*[3]G!I$239,0) -> 0 | L126: =ROUND($F126*[3]G!J$239,0) -> 0 | M126: =ROUND($F126*[3]G!K$239,0) -> 0 | N126: =ROUND($F126*[3]G!L$239,0) -> 0 | O126: =ROUND($F126*[3]G!M$239,0) -> 0 | P126: =ROUND($F126*[3]G!N$239,0) -> 0 | Q126: 0
A127: San Luis Canal - Maintenance - Joint | B127: San Luis Unit | D127: 0 | E127: 0 | F127: =[3]B!J329 -> 0 | G127: =ROUND($F127*[3]G!E$240,0) -> 0 | H127: 0 | I127: =ROUND($F127*[3]G!G$240,0) -> 0 | J127: =ROUND($F127*[3]G!H$240,0) -> 0 | K127: =ROUND($F127*[3]G!I$240,0) -> 0 | L127: =ROUND($F127*[3]G!J$240,0) -> 0 | M127: =ROUND($F127*[3]G!K$240,0) -> 0 | N127: =ROUND($F127*[3]G!L$240,0) -> 0 | O127: =ROUND($F127*[3]G!M$240,0) -> 0 | P127: =ROUND($F127*[3]G!N$240,0) -> 0 | Q127: 0
A128: San Luis Canal - Federal Only | B128: San Luis Unit | D128: 28000 | E128: -28000 | F128: =[3]B!J338 -> 0 | G128: =ROUND($F128*[3]G!E$249,0) -> 0 | H128: 0 | I128: =ROUND($F128*[3]G!G$249,0) -> 0 | J128: =ROUND($F128*[3]G!H$249,0) -> 0 | K128: =ROUND($F128*[3]G!I$249,0) -> 0 | L128: =ROUND($F128*[3]G!J$249,0) -> 0 | M128: =ROUND($F128*[3]G!K$249,0) -> 0 | N128: =ROUND($F128*[3]G!L$249,0) -> 0 | O128: =ROUND($F128*[3]G!M$249,0) -> 0 | P128: =ROUND($F128*[3]G!N$249,0) -> 0 | Q128: 0
A129: Drainage Projects | B129: San Luis Unit | D129: 2167000 | E129: -1507000 | F129: =[3]B!J340 -> 660000 | G129: =ROUND($F129*[3]G!E$251,0) -> 0 | H129: 660000 | I129: =ROUND($F129*[3]G!G$251,0) -> 0 | J129: =ROUND($F129*[3]G!H$251,0) -> 0 | K129: =ROUND($F129*[3]G!I$251,0) -> 0 | L129: =ROUND($F129*[3]G!J$251,0) -> 0 | M129: =ROUND($F129*[3]G!K$251,0) -> 0 | N129: =ROUND($F129*[3]G!L$251,0) -> 0 | O129: =ROUND($F129*[3]G!M$251,0) -> 0 | P129: =ROUND($F129*[3]G!N$251,0) -> 0 | Q129: 0
A130: Tehama-Colusa Canal | B130: Sacramento River Division | D130: 50000 | E130: 20000 | F130: =[3]B!J292 -> 70000 | G130: =ROUND($F130*[3]G!E$209,0) -> 1148 | H130: 53011 | I130: =ROUND($F130*[3]G!G$209,0) -> 6594 | J130: =ROUND($F130*[3]G!H$209,0) -> 0 | K130: =ROUND($F130*[3]G!I$209,0) -> 8316 | L130: =ROUND($F130*[3]G!J$209,0) -> 0 | M130: =ROUND($F130*[3]G!K$209,0) -> 0 | N130: =ROUND($F130*[3]G!L$209,0) -> 0 | O130: =ROUND($F130*[3]G!M$209,0) -> 931 | P130: =ROUND($F130*[3]G!N$209,0) -> 0 | Q130: 0
A131: Shasta Pumping Plant | B131: Shasta Division | D131: 0 | E131: =F131-D131 -> 0 | F131: =[3]B!J373 -> 0 | G131: =ROUND($F131*[3]G!E$275,0) -> 0 | H131: =ROUND($F131*[3]G!F$275,0) -> 0 | I131: =ROUND($F131*[3]G!G$275,0) -> 0 | J131: =ROUND($F131*[3]G!H$275,0) -> 0 | K131: =ROUND($F131*[3]G!I$275,0) -> 0 | L131: =ROUND($F131*[3]G!J$275,0) -> 0 | M131: =ROUND($F131*[3]G!K$275,0) -> 0 | N131: =ROUND($F131*[3]G!L$275,0) -> 0 | O131: =ROUND($F131*[3]G!M$275,0) -> 0 | P131: =ROUND($F131*[3]G!N$275,0) -> 0 | Q131: =F131-SUM(G131:P131) -> 0
A132: Toyon Pipeline | B132: Shasta Division | D132: 0 | E132: 0 | F132: =[3]B!J379 -> 0 | G132: =ROUND($F132*[3]G!E$280,0) -> 0 | H132: 0 | I132: =ROUND($F132*[3]G!G$280,0) -> 0 | J132: =ROUND($F132*[3]G!H$280,0) -> 0 | K132: =ROUND($F132*[3]G!I$280,0) -> 0 | L132: =ROUND($F132*[3]G!J$280,0) -> 0 | M132: =ROUND($F132*[3]G!K$280,0) -> 0 | N132: =ROUND($F132*[3]G!L$280,0) -> 0 | O132: =ROUND($F132*[3]G!M$280,0) -> 0 | P132: =ROUND($F132*[3]G!N$280,0) -> 0 | Q132: 0
A134: Total Conveyance O&M | D134: 2920000 | E134: =SUM(E103:E132) -> -1457000 | F134: 1463000 | G134: 606630 | H134: 779890 | I134: 23190 | J134: 73 | K134: 29250 | L134: 687 | M134: 0 | N134: 0 | O134: 3280 | P134: 20000 | Q134: =F134-SUM(G134:P134) -> 0
A135: Transfer to Fish and Wildlife O&M | D135: -53267 | E135: =SUM(E104:E133) -> -1457000 | F135: =I135 -> -23190 | I135: =-I134 -> -23190 | Q135: 0
A136: Transfer to Recreation O&M | D136: -1820 | E136: =SUM(E105:E134) -> -2914000 | F136: =J136 -> -73 | J136: =-J134 -> -73 | Q136: 0
A137: Transfer to Power O&M | D137: -24512 | E137: -4339000 | F137: =K137 -> -29250 | K137: =-K134 -> -29250 | Q137: 0
A138: Transfer to Flood Control O&M | D138: -17165 | E138: -7253000 | F138: =L138 -> -687 | L138: =-L134 -> -687 | Q138: 0
A139: Transfer to State of California O&M | D139: -5731 | E139: -11592000 | F139: =O139 -> -3280 | O139: =-O134 -> -3280 | Q139: 0
A140: Transfer to Non-Reimbursable Bureau Prog. | D140: -15000 | E140: -18790000 | F140: =P140 -> -20000 | P140: =-P134 -> -20000 | Q140: 0
A142: Conveyance O&M - M&I and Irrigation | D142: 2802505 | E142: =SUM(E134:E140) -> -47802000 | F142: 1386520 | G142: 606630 | H142: 779890 | I142: 0 | J142: 0 | K142: 0 | L142: 0 | M142: 0 | N142: 0 | O142: 0 | P142: 0 | Q142: =F142-SUM(G142:P142) -> 0
A146: CONVEYANCE PUMPING O&M
A148: Corning Pumping Plant | B148: Sacramento River Division | D148: 0 | E148: =F148-D148 -> 0 | F148: =[3]B!J293 -> 0 | G148: =ROUND($F148*[3]G!E$210,0) -> 0 | H148: =F148-G148-SUM(I148:P148) -> 0 | I148: =ROUND($F148*[3]G!G$210,0) -> 0 | J148: =ROUND($F148*[3]G!H$210,0) -> 0 | K148: =ROUND($F148*[3]G!I$210,0) -> 0 | L148: =ROUND($F148*[3]G!J$210,0) -> 0 | M148: =ROUND($F148*[3]G!K$210,0) -> 0 | N148: =ROUND($F148*[3]G!L$210,0) -> 0 | O148: =ROUND($F148*[3]G!M$210,0) -> 0 | P148: =ROUND($F148*[3]G!N$210,0) -> 0 | Q148: =F148-SUM(G148:P148) -> 0
A149: Dos Amigos Pumping Plant - Oper. - Joint | B149: San Luis Unit | D149: 0 | E149: 0 | F149: =[3]B!J324 -> 0 | G149: =ROUND($F149*[3]G!E$235,0) -> 0 | H149: 0 | I149: =ROUND($F149*[3]G!G$235,0) -> 0 | J149: =ROUND($F149*[3]G!H$235,0) -> 0 | K149: =ROUND($F149*[3]G!I$235,0) -> 0 | L149: =ROUND($F149*[3]G!J$235,0) -> 0 | M149: =ROUND($F149*[3]G!K$235,0) -> 0 | N149: =ROUND($F149*[3]G!L$235,0) -> 0 | O149: =ROUND($F149*[3]G!M$235,0) -> 0 | P149: =ROUND($F149*[3]G!N$235,0) -> 0 | Q149: 0
A150: Dos Amigos Pumping Plant - Maint. - Joint | B150: San Luis Unit | D150: 0 | E150: 0 | F150: =[3]B!J325 -> 0 | G150: =ROUND($F150*[3]G!E$236,0) -> 0 | H150: 0 | I150: =ROUND($F150*[3]G!G$236,0) -> 0 | J150: =ROUND($F150*[3]G!H$236,0) -> 0 | K150: =ROUND($F150*[3]G!I$236,0) -> 0 | L150: =ROUND($F150*[3]G!J$236,0) -> 0 | M150: =ROUND($F150*[3]G!K$236,0) -> 0 | N150: =ROUND($F150*[3]G!L$236,0) -> 0 | O150: =ROUND($F150*[3]G!M$236,0) -> 0 | P150: =ROUND($F150*[3]G!N$236,0) -> 0 | Q150: 0
A151: Dos Amigos Switchyard - Operation - Joint | B151: San Luis Unit | D151: 0 | E151: 0 | F151: =[3]B!J326 -> 0 | G151: =ROUND($F151*[3]G!E$237,0) -> 0 | H151: 0 | I151: =ROUND($F151*[3]G!G$237,0) -> 0 | J151: =ROUND($F151*[3]G!H$237,0) -> 0 | K151: =ROUND($F151*[3]G!I$237,0) -> 0 | L151: =ROUND($F151*[3]G!J$237,0) -> 0 | M151: =ROUND($F151*[3]G!K$237,0) -> 0 | N151: =ROUND($F151*[3]G!L$237,0) -> 0 | O151: =ROUND($F151*[3]G!M$237,0) -> 0 | P151: =ROUND($F151*[3]G!N$237,0) -> 0 | Q151: 0
A152: Dos Amigos Switchyard - Maintenance - Joint | B152: San Luis Unit | D152: 0 | E152: 0 | F152: =[3]B!J327 -> 0 | G152: =ROUND($F152*[3]G!E$238,0) -> 0 | H152: 0 | I152: =ROUND($F152*[3]G!G$238,0) -> 0 | J152: =ROUND($F152*[3]G!H$238,0) -> 0 | K152: =ROUND($F152*[3]G!I$238,0) -> 0 | L152: =ROUND($F152*[3]G!J$238,0) -> 0 | M152: =ROUND($F152*[3]G!K$238,0) -> 0 | N152: =ROUND($F152*[3]G!L$238,0) -> 0 | O152: =ROUND($F152*[3]G!M$238,0) -> 0 | P152: =ROUND($F152*[3]G!N$238,0) -> 0 | Q152: 0
A153: Environmental Monitoring | B153: San Luis Unit | D153: 14000 | E153: -14000 | F153: =[3]B!J341 -> 0 | G153: =ROUND($F153*[3]G!E$252,0) -> 0 | H153: 0 | I153: =ROUND($F153*[3]G!G$252,0) -> 0 | J153: =ROUND($F153*[3]G!H$252,0) -> 0 | K153: =ROUND($F153*[3]G!I$252,0) -> 0 | L153: =ROUND($F153*[3]G!J$252,0) -> 0 | M153: =ROUND($F153*[3]G!K$252,0) -> 0 | N153: =ROUND($F153*[3]G!L$252,0) -> 0 | O153: =ROUND($F153*[3]G!M$252,0) -> 0 | P153: =ROUND($F153*[3]G!N$252,0) -> 0 | Q153: 0
A154: Contra Costa Fish Monitoring (Mitigation) | B154: Delta Division | D154: 0 | E154: 0 | F154: =[3]B!J225 -> 0 | G154: =ROUND($F154*[3]G!E$127,0) -> 0 | H154: =ROUND($F154*[3]G!F$127,0) -> 0 | I154: =ROUND($F154*[3]G!G$127,0) -> 0 | J154: =ROUND($F154*[3]G!H$127,0) -> 0 | K154: =ROUND($F154*[3]G!I$127,0) -> 0 | L154: =ROUND($F154*[3]G!J$127,0) -> 0 | M154: =ROUND($F154*[3]G!K$127,0) -> 0 | N154: =ROUND($F154*[3]G!L$127,0) -> 0 | O154: =ROUND($F154*[3]G!M$127,0) -> 0 | P154: =ROUND($F154*[3]G!N$127,0) -> 0 | Q154: 0
A155: Tracy Pumping Plant Mitigation Program | B155: Delta Division | D155: 0 | E155: 0 | F155: =[3]B!J213 -> 0 | G155: =ROUND($F155*[3]G!E$118,0) -> 0 | H155: =ROUND($F155*[3]G!F$118,0) -> 0 | I155: =ROUND($F155*[3]G!G$118,0) -> 0 | J155: =ROUND($F155*[3]G!H$118,0) -> 0 | K155: =ROUND($F155*[3]G!I$118,0) -> 0 | L155: =ROUND($F155*[3]G!J$118,0) -> 0 | M155: =ROUND($F155*[3]G!K$118,0) -> 0 | N155: =ROUND($F155*[3]G!L$118,0) -> 0 | O155: =ROUND($F155*[3]G!M$118,0) -> 0 | P155: =ROUND($F155*[3]G!N$118,0) -> 0 | Q155: 0
A156: Tracy Pumping Plant | B156: Delta Division | D156: 0 | E156: 0 | F156: =[3]B!J209 -> 0 | G156: =ROUND($F156*[3]G!E$114,0) -> 0 | H156: 0 | I156: =ROUND($F156*[3]G!G$114,0) -> 0 | J156: =ROUND($F156*[3]G!H$114,0) -> 0 | K156: =ROUND($F156*[3]G!I$114,0) -> 0 | L156: =ROUND($F156*[3]G!J$114,0) -> 0 | M156: =ROUND($F156*[3]G!K$114,0) -> 0 | N156: =ROUND($F156*[3]G!L$114,0) -> 0 | O156: =ROUND($F156*[3]G!M$114,0) -> 0 | P156: =ROUND($F156*[3]G!N$114,0) -> 0 | Q156: 0
A157: Conveyance Pumping O&M | D157: 14000 | E157: =SUM(E148:E156) -> -14000 | F157: 0 | G157: 0 | H157: 0 | I157: 0 | J157: 0 | K157: 0 | L157: 0 | M157: 0 | N157: 0 | O157: 0 | P157: 0 | Q157: 0
A159: Total Conveyance Pumping O&M | D159: 14000 | E159: =E157 -> -14000 | F159: 0 | G159: 0 | H159: 0 | I159: 0 | J159: 0 | K159: 0 | L159: 0 | M159: 0 | N159: 0 | O159: 0 | P159: =P157 -> 0 | Q159: =F159-SUM(G159:P159) -> 0
A160: Transfer to Fish and Wildlife O&M | D160: -1709 | E160: 0 | F160: =I160 -> 0 | I160: =-I159 -> 0 | Q160: =F160-SUM(G160:P160) -> 0
A161: Transfer to Power O&M | D161: -3284 | E161: -14000 | F161: =K161 -> 0 | K161: =-K159 -> 0 | Q161: =F161-SUM(G161:P161) -> 0
A162: Transfer to State of California O&M | D162: -10 | E162: 0 | F162: =O162 -> 0 | O162: =-O159 -> 0 | P162: =-P159 -> 0 | Q162: =F162-SUM(G162:P162) -> 0
A164: Conveyance Pumping O&M - M&I and Irrigation | D164: 8997 | E164: 0 | F164: =SUM(F159:F162) -> 0 | G164: 0 | H164: 0 | I164: 0 | J164: 0 | K164: 0 | L164: 0 | M164: 0 | N164: 0 | O164: 0 | P164: =SUM(P159:P162) -> 0 | Q164: =F164-SUM(G164:P164) -> 0
A168: Table 6. Allocated Operation and Maintenance Costs, Fiscal Year 2023 | P168: Sheet 3 of 11
A169: Central Valley Project
A170: California
P172: Non-
D173: Budget Year | E173: =E$16 -> Increase | F173: =F$16 -> Budget Year | I173: =I$16 -> Fish and | L173: =L$16 -> Flood | N173: =N$16 -> Water Quality | O173: =O$16 -> State of | P173: Reimbursable
A174: Component and Feature | B174: =B$17 -> Division or Unit | D174: 2021 | E174: =E$17 -> (Decrease) | F174: 2023 | G174: M&I Water | H174: Irrigation | I174: Wildlife | J174: Recreation | K174: Power | L174: Control | M174: Navigation | N174: Improvement | O174: California | P174: Program
A176: WATER MARKETING
A178: Water Marketing and Contract Administration | B178: American River Division | D178: 391000 | E178: =F178-D178 -> 69000 | F178: =[3]B!J68 -> 460000 | G178: =ROUND($F178*[3]G!E$46,0) -> 62008 | H178: =F178-G178-SUM(I178:P178) -> 397992 | I178: =ROUND($F178*[3]G!G$46,0) -> 0 | J178: =ROUND($F178*[3]G!H$46,0) -> 0 | K178: =ROUND($F178*[3]G!I$46,0) -> 0 | L178: =ROUND($F178*[3]G!J$46,0) -> 0 | M178: =ROUND($F178*[3]G!K$46,0) -> 0 | N178: =ROUND($F178*[3]G!L$46,0) -> 0 | O178: =ROUND($F178*[3]G!M$46,0) -> 0 | P178: =ROUND($F178*[3]G!N$46,0) -> 0 | Q178: =F178-SUM(G178:P178) -> 0
A179: Water Marketing and Contract Administration | B179: Misc. Project Programs | D179: 4840000 | E179: -221000 | F179: =[3]B!J86 -> 4619000 | G179: =ROUND($F179*[3]G!E$59,0) -> 622641 | H179: 3996359 | I179: =ROUND($F179*[3]G!G$59,0) -> 0 | J179: =ROUND($F179*[3]G!H$59,0) -> 0 | K179: =ROUND($F179*[3]G!I$59,0) -> 0 | L179: =ROUND($F179*[3]G!J$59,0) -> 0 | M179: =ROUND($F179*[3]G!K$59,0) -> 0 | N179: =ROUND($F179*[3]G!L$59,0) -> 0 | O179: =ROUND($F179*[3]G!M$59,0) -> 0 | P179: =ROUND($F179*[3]G!N$59,0) -> 0 | Q179: 0
A180: Water Marketing and Contract Administration | B180: Delta Division | D180: 419000 | E180: 50000 | F180: =[3]B!J228 -> 469000 | G180: =ROUND($F180*[3]G!E$133,0) -> 63221 | H180: 405779 | I180: =ROUND($F180*[3]G!G$133,0) -> 0 | J180: =ROUND($F180*[3]G!H$133,0) -> 0 | K180: =ROUND($F180*[3]G!I$133,0) -> 0 | L180: =ROUND($F180*[3]G!J$133,0) -> 0 | M180: =ROUND($F180*[3]G!K$133,0) -> 0 | N180: =ROUND($F180*[3]G!L$133,0) -> 0 | O180: =ROUND($F180*[3]G!M$133,0) -> 0 | P180: =ROUND($F180*[3]G!N$133,0) -> 0 | Q180: 0
A181: Water Marketing and Contract Administration | B181: East Side Division | D181: 89000 | E181: 46000 | F181: =[3]B!J264 -> 135000 | G181: =ROUND($F181*[3]G!E$161,0) -> 18198 | H181: 116802 | I181: =ROUND($F181*[3]G!G$161,0) -> 0 | J181: =ROUND($F181*[3]G!H$161,0) -> 0 | K181: =ROUND($F181*[3]G!I$161,0) -> 0 | L181: =ROUND($F181*[3]G!J$161,0) -> 0 | M181: =ROUND($F181*[3]G!K$161,0) -> 0 | N181: =ROUND($F181*[3]G!L$161,0) -> 0 | O181: =ROUND($F181*[3]G!M$161,0) -> 0 | P181: =ROUND($F181*[3]G!N$161,0) -> 0 | Q181: 0
A182: Water Marketing and Contract Administration | B182: Friant Division | D182: 447000 | E182: -13000 | F182: =[3]B!J160 -> 434000 | G182: =ROUND($F182*[3]G!E$186,0) -> 58503 | H182: 375497 | I182: =ROUND($F182*[3]G!G$186,0) -> 0 | J182: =ROUND($F182*[3]G!H$186,0) -> 0 | K182: =ROUND($F182*[3]G!I$186,0) -> 0 | L182: =ROUND($F182*[3]G!J$186,0) -> 0 | M182: =ROUND($F182*[3]G!K$186,0) -> 0 | N182: =ROUND($F182*[3]G!L$186,0) -> 0 | O182: =ROUND($F182*[3]G!M$186,0) -> 0 | P182: =ROUND($F182*[3]G!N$186,0) -> 0 | Q182: 0
A183: Water Marketing and Contract Administration | B183: San Luis Unit | D183: 232000 | E183: 64000 | F183: =[3]B!J346 -> 296000 | G183: =ROUND($F183*[3]G!E$257,0) -> 39901 | H183: 256099 | I183: =ROUND($F183*[3]G!G$257,0) -> 0 | J183: =ROUND($F183*[3]G!H$257,0) -> 0 | K183: =ROUND($F183*[3]G!I$257,0) -> 0 | L183: =ROUND($F183*[3]G!J$257,0) -> 0 | M183: =ROUND($F183*[3]G!K$257,0) -> 0 | N183: =ROUND($F183*[3]G!L$257,0) -> 0 | O183: =ROUND($F183*[3]G!M$257,0) -> 0 | P183: =ROUND($F183*[3]G!N$257,0) -> 0 | Q183: 0
A184: Water Marketing and Contract Administration | B184: San Felipe Unit | D184: 0 | E184: 32000 | F184: =[3]B!J448 -> 32000 | G184: =ROUND($F184*[3]G!E$331,0) -> 4314 | H184: 27686 | I184: =ROUND($F184*[3]G!G$331,0) -> 0 | J184: =ROUND($F184*[3]G!H$331,0) -> 0 | K184: =ROUND($F184*[3]G!I$331,0) -> 0 | L184: =ROUND($F184*[3]G!J$331,0) -> 0 | M184: =ROUND($F184*[3]G!K$331,0) -> 0 | N184: =ROUND($F184*[3]G!L$331,0) -> 0 | O184: =ROUND($F184*[3]G!M$331,0) -> 0 | P184: =ROUND($F184*[3]G!N$331,0) -> 0 | Q184: 0
A185: Water Marketing and Contract Administration | B185: Shasta Division | D185: 0 | E185: 118000 | F185: =[3]B!J382 -> 118000 | G185: =ROUND($F185*[3]G!E$283,0) -> 15906 | H185: 102094 | I185: =ROUND($F185*[3]G!G$283,0) -> 0 | J185: =ROUND($F185*[3]G!H$283,0) -> 0 | K185: =ROUND($F185*[3]G!I$283,0) -> 0 | L185: =ROUND($F185*[3]G!J$283,0) -> 0 | M185: =ROUND($F185*[3]G!K$283,0) -> 0 | N185: =ROUND($F185*[3]G!L$283,0) -> 0 | O185: =ROUND($F185*[3]G!M$283,0) -> 0 | P185: =ROUND($F185*[3]G!N$283,0) -> 0 | Q185: 0
A186: Water Marketing and Contract Administation | D186: 6418000 | E186: =SUM(E178:E185) -> 145000 | F186: =SUM(F178:F185) -> 6563000 | G186: =SUM(G178:G185) -> 884692 | H186: =SUM(H178:H185) -> 5678308 | I186: =SUM(I178:I185) -> 0 | J186: 0 | K186: 0 | L186: 0 | M186: 0 | N186: 0 | O186: 0 | P186: 0 | Q186: 0
Q187: 0
A188: Water Service Contract Renewals | B188: American River Division | D188: 0 | E188: =F188-D188 -> 0 | F188: =[3]B!J67 -> 0 | G188: =ROUND($F188*[3]G!E$45,0) -> 0 | H188: =F188-G188-SUM(I188:P188) -> 0 | I188: =ROUND($F188*[3]G!G$45,0) -> 0 | J188: =ROUND($F188*[3]G!H$45,0) -> 0 | K188: =ROUND($F188*[3]G!I$45,0) -> 0 | L188: =ROUND($F188*[3]G!J$45,0) -> 0 | M188: =ROUND($F188*[3]G!K$45,0) -> 0 | N188: =ROUND($F188*[3]G!L$45,0) -> 0 | O188: =ROUND($F188*[3]G!M$45,0) -> 0 | P188: =ROUND($F188*[3]G!N$45,0) -> 0 | Q188: 0
A189: Water Service Contract Renewals | B189: Delta Division | D189: 26000 | E189: -21000 | F189: =[3]B!J229 -> 5000 | G189: =ROUND($F189*[3]G!E$134,0) -> 674 | H189: 4326 | I189: =ROUND($F189*[3]G!G$134,0) -> 0 | J189: =ROUND($F189*[3]G!H$134,0) -> 0 | K189: =ROUND($F189*[3]G!I$134,0) -> 0 | L189: =ROUND($F189*[3]G!J$134,0) -> 0 | M189: =ROUND($F189*[3]G!K$134,0) -> 0 | N189: =ROUND($F189*[3]G!L$134,0) -> 0 | O189: =ROUND($F189*[3]G!M$134,0) -> 0 | P189: =ROUND($F189*[3]G!N$134,0) -> 0 | Q189: 0
A190: Water Service Contract Renewals | B190: Friant Division | D190: 0 | E190: 0 | F190: =[3]B!J164 -> 0 | G190: =ROUND($F190*[3]G!E$190,0) -> 0 | H190: 0 | I190: =ROUND($F190*[3]G!G$190,0) -> 0 | J190: =ROUND($F190*[3]G!H$190,0) -> 0 | K190: =ROUND($F190*[3]G!I$190,0) -> 0 | L190: =ROUND($F190*[3]G!J$190,0) -> 0 | M190: =ROUND($F190*[3]G!K$190,0) -> 0 | N190: =ROUND($F190*[3]G!L$190,0) -> 0 | O190: =ROUND($F190*[3]G!M$190,0) -> 0 | P190: =ROUND($F190*[3]G!N$190,0) -> 0 | Q190: 0
A191: Water Service Contract Renewals | B191: Misc. Project Programs | D191: 0 | E191: 0 | F191: =[3]B!J89 -> 0 | G191: =ROUND($F191*[3]G!E$62,0) -> 0 | H191: 0 | I191: =ROUND($F191*[3]G!G$62,0) -> 0 | J191: =ROUND($F191*[3]G!H$62,0) -> 0 | K191: =ROUND($F191*[3]G!I$62,0) -> 0 | L191: =ROUND($F191*[3]G!J$62,0) -> 0 | M191: =ROUND($F191*[3]G!K$62,0) -> 0 | N191: =ROUND($F191*[3]G!L$62,0) -> 0 | O191: =ROUND($F191*[3]G!M$62,0) -> 0 | P191: =ROUND($F191*[3]G!N$62,0) -> 0 | Q191: 0
A192: Water Service Contract Renewals | B192: Sacramento River Division | D192: 472000 | E192: 246000 | F192: =[3]B!J300 -> 718000 | G192: =ROUND($F192*[3]G!E$218,0) -> 96786 | H192: 621214 | I192: =ROUND($F192*[3]G!G$218,0) -> 0 | J192: =ROUND($F192*[3]G!H$218,0) -> 0 | K192: =ROUND($F192*[3]G!I$218,0) -> 0 | L192: =ROUND($F192*[3]G!J$218,0) -> 0 | M192: =ROUND($F192*[3]G!K$218,0) -> 0 | N192: =ROUND($F192*[3]G!L$218,0) -> 0 | O192: =ROUND($F192*[3]G!M$218,0) -> 0 | P192: =ROUND($F192*[3]G!N$218,0) -> 0 | Q192: 0
A193: Water Service Contract Renewals | B193: San Luis Unit | D193: 0 | E193: 0 | F193: =[3]B!J348 -> 0 | G193: =ROUND($F193*[3]G!E$259,0) -> 0 | H193: 0 | I193: =ROUND($F193*[3]G!G$259,0) -> 0 | J193: =ROUND($F193*[3]G!H$259,0) -> 0 | K193: =ROUND($F193*[3]G!I$259,0) -> 0 | L193: =ROUND($F193*[3]G!J$259,0) -> 0 | M193: =ROUND($F193*[3]G!K$259,0) -> 0 | N193: =ROUND($F193*[3]G!L$259,0) -> 0 | O193: =ROUND($F193*[3]G!M$259,0) -> 0 | P193: =ROUND($F193*[3]G!N$259,0) -> 0 | Q193: 0
A194: Water Service Contract Renewals | B194: Shasta Division | D194: 166000 | E194: -166000 | F194: =[3]B!J384 -> 0 | G194: =ROUND($F194*[3]G!E$285,0) -> 0 | H194: 0 | I194: =ROUND($F194*[3]G!G$285,0) -> 0 | J194: =ROUND($F194*[3]G!H$285,0) -> 0 | K194: =ROUND($F194*[3]G!I$285,0) -> 0 | L194: =ROUND($F194*[3]G!J$285,0) -> 0 | M194: =ROUND($F194*[3]G!K$285,0) -> 0 | N194: =ROUND($F194*[3]G!L$285,0) -> 0 | O194: =ROUND($F194*[3]G!M$285,0) -> 0 | P194: =ROUND($F194*[3]G!N$285,0) -> 0 | Q194: 0
A195: Water Service Contract Renewals | D195: 664000 | E195: =SUM(E188:E194) -> 59000 | F195: =SUM(F188:F194) -> 723000 | G195: =SUM(G188:G194) -> 97460 | H195: =SUM(H188:H194) -> 625540 | I195: =SUM(I188:I194) -> 0 | J195: 0 | K195: 0 | L195: 0 | M195: 0 | N195: 0 | O195: 0 | P195: 0 | Q195: 0
A197: Water Contract Administration | D197: 7082000 | E197: =E186+E195 -> 204000 | F197: =F186+F195 -> 7286000 | G197: =G186+G195 -> 982152 | H197: =H186+H195 -> 6303848 | I197: =I186+I195 -> 0 | J197: 0 | K197: 0 | L197: 0 | M197: 0 | N197: 0 | O197: 0 | P197: 0 | Q197: =F197-SUM(G197:P197) -> 0
A200: Centralized Water and Power System Control | B200: Water and Power Operations | D200: 403000 | E200: =F200-D200 -> 3103000 | F200: =[3]B!J190 -> 3506000 | G200: =ROUND($F200*[3]G!E$364,0) -> 221229 | H200: =F200-G200-SUM(I200:P200) -> 1613462 | I200: =ROUND($F200*[3]G!G$364,0) -> 29450 | J200: =ROUND($F200*[3]G!H$364,0) -> 13673 | K200: =ROUND($F200*[3]G!I$364,0) -> 895432 | L200: =ROUND($F200*[3]G!J$364,0) -> 576737 | M200: =ROUND($F200*[3]G!K$364,0) -> 0 | N200: =ROUND($F200*[3]G!L$364,0) -> 155666 | O200: =ROUND($F200*[3]G!M$364,0) -> 351 | P200: =ROUND($F200*[3]G!N$364,0) -> 0 | Q200: =F200-SUM(G200:P200) -> 0
A201: CVP Water Wheeling | B201: Water and Power Operations | D201: 2979000 | E201: -1479000 | F201: =[3]B!J191 -> 1500000 | G201: =ROUND($F201*[3]G!E$365,0) -> 185100 | H201: =F201-G201-SUM(I201:P201) -> 1195800 | I201: =ROUND($F201*[3]G!G$365,0) -> 49500 | J201: =ROUND($F201*[3]G!H$365,0) -> 0 | K201: =ROUND($F201*[3]G!I$365,0) -> 62550 | L201: =ROUND($F201*[3]G!J$365,0) -> 0 | M201: =ROUND($F201*[3]G!K$365,0) -> 0 | N201: =ROUND($F201*[3]G!L$365,0) -> 0 | O201: =ROUND($F201*[3]G!M$365,0) -> 7050 | P201: =ROUND($F201*[3]G!N$365,0) -> 0 | Q201: 0
A202: Science Technology | B202: Sacramento River Division | D202: 0 | E202: 0 | F202: =[3]B!J304 -> 0 | G202: =ROUND($F202*[3]G!E$220,0) -> 0 | H202: 0 | I202: =ROUND($F202*[3]G!G$220,0) -> 0 | J202: =ROUND($F202*[3]G!H$220,0) -> 0 | K202: =ROUND($F202*[3]G!I$220,0) -> 0 | L202: =ROUND($F202*[3]G!J$220,0) -> 0 | M202: =ROUND($F202*[3]G!K$220,0) -> 0 | N202: =ROUND($F202*[3]G!L$220,0) -> 0 | O202: =ROUND($F202*[3]G!M$220,0) -> 0 | P202: =ROUND($F202*[3]G!N$220,0) -> 0 | Q202: 0
A203: Research and Technology | B203: Trinity Division | D203: 0 | E203: 0 | F203: =[3]B!J435 -> 0 | G203: =ROUND($F203*[3]G!E$324,0) -> 0 | H203: 0 | I203: =ROUND($F203*[3]G!G$324,0) -> 0 | J203: =ROUND($F203*[3]G!H$324,0) -> 0 | K203: =ROUND($F203*[3]G!I$324,0) -> 0 | L203: =ROUND($F203*[3]G!J$324,0) -> 0 | M203: =ROUND($F203*[3]G!K$324,0) -> 0 | N203: =ROUND($F203*[3]G!L$324,0) -> 0 | O203: =ROUND($F203*[3]G!M$324,0) -> 0 | P203: =ROUND($F203*[3]G!N$324,0) -> 0 | Q203: 0
A204: Research and Technology | B204: Shasta Division | D204: 0 | E204: 0 | F204: =[3]B!J394 -> 0 | G204: =ROUND($F204*[3]G!E$294,0) -> 0 | H204: 0 | I204: =ROUND($F204*[3]G!G$294,0) -> 0 | J204: =ROUND($F204*[3]G!H$294,0) -> 0 | K204: =ROUND($F204*[3]G!I$294,0) -> 0 | L204: =ROUND($F204*[3]G!J$294,0) -> 0 | M204: =ROUND($F204*[3]G!K$294,0) -> 0 | N204: =ROUND($F204*[3]G!L$294,0) -> 0 | O204: =ROUND($F204*[3]G!M$294,0) -> 0 | P204: =ROUND($F204*[3]G!N$294,0) -> 0 | Q204: 0
A205: Power Operations and Systems Management | B205: Water and Power Operations | D205: 3375000 | E205: -151000 | F205: =[3]B!J187 -> 3224000 | G205: =ROUND($F205*[3]G!E$361,0) -> 0 | H205: 0 | I205: =ROUND($F205*[3]G!G$361,0) -> 0 | J205: =ROUND($F205*[3]G!H$361,0) -> 0 | K205: =ROUND($F205*[3]G!I$361,0) -> 3224000 | L205: =ROUND($F205*[3]G!J$361,0) -> 0 | M205: =ROUND($F205*[3]G!K$361,0) -> 0 | N205: =ROUND($F205*[3]G!L$361,0) -> 0 | O205: =ROUND($F205*[3]G!M$361,0) -> 0 | P205: =ROUND($F205*[3]G!N$361,0) -> 0 | Q205: 0
A206: Power Operations - Customer Funds | B206: Water and Power Operations | D206: 0 | E206: 0 | F206: =[3]B!J188 -> 0 | G206: =ROUND($F206*[3]G!E$361,0) -> 0 | H206: 0 | I206: =ROUND($F206*[3]G!G$361,0) -> 0 | J206: =ROUND($F206*[3]G!H$361,0) -> 0 | K206: =ROUND($F206*[3]G!I$361,0) -> 0 | L206: =ROUND($F206*[3]G!J$361,0) -> 0 | M206: =ROUND($F206*[3]G!K$361,0) -> 0 | N206: =ROUND($F206*[3]G!L$361,0) -> 0 | O206: =ROUND($F206*[3]G!M$361,0) -> 0 | P206: =ROUND($F206*[3]G!N$361,0) -> 0 | Q206: 0
A207: CVP Radio Network | B207: Water and Power Operations | D207: 450000 | E207: 150000 | F207: =[3]B!J192 -> 600000 | G207: =ROUND($F207*[3]G!E$366,0) -> 37860 | H207: 276120 | I207: =ROUND($F207*[3]G!G$366,0) -> 5040 | J207: =ROUND($F207*[3]G!H$366,0) -> 2340 | K207: =ROUND($F207*[3]G!I$366,0) -> 153240 | L207: =ROUND($F207*[3]G!J$366,0) -> 98700 | M207: =ROUND($F207*[3]G!K$366,0) -> 0 | N207: =ROUND($F207*[3]G!L$366,0) -> 26640 | O207: =ROUND($F207*[3]G!M$366,0) -> 60 | P207: =ROUND($F207*[3]G!N$366,0) -> 0 | Q207: 0
A208: CVP Operating Criteria and Plans (OCAP) | B208: Water and Power Operations | D208: 3232000 | E208: -3232000 | F208: =[3]B!J195 -> 0 | G208: =ROUND($F208*[3]G!E$369,0) -> 0 | H208: 0 | I208: =ROUND($F208*[3]G!G$369,0) -> 0 | J208: =ROUND($F208*[3]G!H$369,0) -> 0 | K208: =ROUND($F208*[3]G!I$369,0) -> 0 | L208: =ROUND($F208*[3]G!J$369,0) -> 0 | M208: =ROUND($F208*[3]G!K$369,0) -> 0 | N208: =ROUND($F208*[3]G!L$369,0) -> 0 | O208: =ROUND($F208*[3]G!M$369,0) -> 0 | P208: =ROUND($F208*[3]G!N$369,0) -> 0 | Q208: 0
A209: Fish & Wildlife Coordination Act | B209: Misc. Project Program | D209: 68000 | E209: -68000 | F209: =[3]B!J104 -> 0 | G209: =ROUND($F209*[3]G!E$77,0) -> 0 | H209: =F209-G209-SUM(I209:P209) -> 0 | I209: =ROUND($F209*[3]G!G$77,0) -> 0 | J209: =ROUND($F209*[3]G!H$77,0) -> 0 | K209: =ROUND($F209*[3]G!I$77,0) -> 0 | L209: =ROUND($F209*[3]G!J$77,0) -> 0 | M209: =ROUND($F209*[3]G!K$77,0) -> 0 | N209: =ROUND($F209*[3]G!L$77,0) -> 0 | O209: =ROUND($F209*[3]G!M$77,0) -> 0 | P209: =ROUND($F209*[3]G!N$77,0) -> 0 | Q209: 0
A210: San Joaquin River Restoration Program | B210: Friant Division | D210: 34000000 | E210: -13500000 | F210: =[3]B!$J$162 -> 20500000 | G210: =ROUND($F210*[3]G!E$188,0) -> 0 | H210: =F210-G210-SUM(I210:P210) -> 0 | I210: =ROUND($F210*[3]G!G$188,0) -> 0 | J210: =ROUND($F210*[3]G!H$188,0) -> 0 | K210: =ROUND($F210*[3]G!I$188,0) -> 0 | L210: =ROUND($F210*[3]G!J$188,0) -> 0 | M210: =ROUND($F210*[3]G!K$188,0) -> 0 | N210: =ROUND($F210*[3]G!L$188,0) -> 0 | O210: =ROUND($F210*[3]G!M$188,0) -> 0 | P210: =ROUND($F210*[3]G!N$188,0) -> 20500000 | Q210: 0
A211: Hydromet System | B211: Water and Power Operations | D211: 460000 | E211: 0 | F211: =[3]B!J193 -> 460000 | G211: =ROUND($F211*[3]G!E$367,0) -> 29026 | H211: 211692 | I211: =ROUND($F211*[3]G!G$367,0) -> 3864 | J211: =ROUND($F211*[3]G!H$367,0) -> 1794 | K211: =ROUND($F211*[3]G!I$367,0) -> 117484 | L211: =ROUND($F211*[3]G!J$367,0) -> 75670 | M211: =ROUND($F211*[3]G!K$367,0) -> 0 | N211: =ROUND($F211*[3]G!L$367,0) -> 20424 | O211: =ROUND($F211*[3]G!M$367,0) -> 46 | P211: =ROUND($F211*[3]G!N$367,0) -> 0 | Q211: 0
A212: Power Resource Management & Administration | B212: Water and Power Operations | D212: 0 | E212: 0 | F212: =[3]B!J196 -> 0 | G212: =ROUND($F212*[3]G!E$370,0) -> 0 | H212: 0 | I212: =ROUND($F212*[3]G!G$370,0) -> 0 | J212: =ROUND($F212*[3]G!H$370,0) -> 0 | K212: =ROUND($F212*[3]G!I$370,0) -> 0 | L212: =ROUND($F212*[3]G!J$370,0) -> 0 | M212: =ROUND($F212*[3]G!K$370,0) -> 0 | N212: =ROUND($F212*[3]G!L$370,0) -> 0 | O212: =ROUND($F212*[3]G!M$370,0) -> 0 | P212: =ROUND($F212*[3]G!N$370,0) -> 0 | Q212: 0
A213: System Control and Load Dispatching | B213: Water and Power Operations | D213: 1345000 | E213: -1345000 | F213: =[3]B!J189 -> 0 | G213: =ROUND($F213*[3]G!E$363,0) -> 0 | H213: 0 | I213: =ROUND($F213*[3]G!G$363,0) -> 0 | J213: =ROUND($F213*[3]G!H$363,0) -> 0 | K213: =ROUND($F213*[3]G!I$363,0) -> 0 | L213: =ROUND($F213*[3]G!J$363,0) -> 0 | M213: =ROUND($F213*[3]G!K$363,0) -> 0 | N213: =ROUND($F213*[3]G!L$363,0) -> 0 | O213: =ROUND($F213*[3]G!M$363,0) -> 0 | P213: =ROUND($F213*[3]G!N$363,0) -> 0 | Q213: 0
A214: Other Consolidated Expenditures and Credits | B214: Water and Power Operations | D214: 0 | E214: =F214-D214 -> 0 | F214: =[3]B!J199 -> 0 | G214: =ROUND($F214*[3]G!E$363,0) -> 0 | H214: 0 | I214: =ROUND($F214*[3]G!G$363,0) -> 0 | J214: =ROUND($F214*[3]G!H$363,0) -> 0 | K214: =ROUND($F214*[3]G!I$363,0) -> 0 | L214: =ROUND($F214*[3]G!J$363,0) -> 0 | M214: =ROUND($F214*[3]G!K$363,0) -> 0 | N214: =ROUND($F214*[3]G!L$363,0) -> 0 | O214: =ROUND($F214*[3]G!M$363,0) -> 0 | P214: =ROUND($F214*[3]G!N$363,0) -> 0 | Q214: 0
A215: Prospect Island - Water Operations | B215: Delta Division | D215: 0 | E215: 0 | F215: =[3]B!J215 -> 0 | G215: =ROUND($F215*[3]G!E$120,0) -> 0 | H215: 0 | I215: =ROUND($F215*[3]G!G$120,0) -> 0 | J215: =ROUND($F215*[3]G!H$120,0) -> 0 | K215: =ROUND($F215*[3]G!I$120,0) -> 0 | L215: =ROUND($F215*[3]G!J$120,0) -> 0 | M215: =ROUND($F215*[3]G!K$120,0) -> 0 | N215: =ROUND($F215*[3]G!L$120,0) -> 0 | O215: =ROUND($F215*[3]G!M$120,0) -> 0 | P215: =ROUND($F215*[3]G!N$120,0) -> 0 | Q215: 0
A216: Model Maintenance/Evaluation | B216: Misc. Project Programs | D216: 485000 | E216: 100000 | F216: =[3]B!J92 -> 585000 | G216: =ROUND($F216*[3]G!E$65,0) -> 36914 | H216: 269215 | I216: =ROUND($F216*[3]G!G$65,0) -> 4914 | J216: =ROUND($F216*[3]G!H$65,0) -> 2282 | K216: =ROUND($F216*[3]G!I$65,0) -> 149409 | L216: =ROUND($F216*[3]G!J$65,0) -> 96233 | M216: =ROUND($F216*[3]G!K$65,0) -> 0 | N216: =ROUND($F216*[3]G!L$65,0) -> 25974 | O216: =ROUND($F216*[3]G!M$65,0) -> 59 | P216: =ROUND($F216*[3]G!N$65,0) -> 0 | Q216: 0
A217: CVP/SWP Model/Data Development | B217: Misc. Project Programs | D217: 235000 | E217: -100000 | F217: =[3]B!J93 -> 135000 | G217: =ROUND($F217*[3]G!E$66,0) -> 8519 | H217: 62125 | I217: =ROUND($F217*[3]G!G$66,0) -> 1134 | J217: =ROUND($F217*[3]G!H$66,0) -> 527 | K217: =ROUND($F217*[3]G!I$66,0) -> 34479 | L217: =ROUND($F217*[3]G!J$66,0) -> 22208 | M217: =ROUND($F217*[3]G!K$66,0) -> 0 | N217: =ROUND($F217*[3]G!L$66,0) -> 5994 | O217: =ROUND($F217*[3]G!M$66,0) -> 14 | P217: =ROUND($F217*[3]G!N$66,0) -> 0 | Q217: 0
A218: Hydrologic Operations Model | B218: Delta Division | D218: 0 | E218: 0 | F218: =[3]B!J237 -> 0 | G218: =ROUND($F218*[3]G!E$139,0) -> 0 | H218: 0 | I218: =ROUND($F218*[3]G!G$139,0) -> 0 | J218: =ROUND($F218*[3]G!H$139,0) -> 0 | K218: =ROUND($F218*[3]G!I$139,0) -> 0 | L218: =ROUND($F218*[3]G!J$139,0) -> 0 | M218: =ROUND($F218*[3]G!K$139,0) -> 0 | N218: =ROUND($F218*[3]G!L$139,0) -> 0 | O218: =ROUND($F218*[3]G!M$139,0) -> 0 | P218: =ROUND($F218*[3]G!N$139,0) -> 0 | Q218: 0
A219: Technical Review and Guidance | B219: Misc. Project Programs | D219: 200000 | E219: -29000 | F219: =[3]B!J106 -> 171000 | G219: =ROUND($F219*[3]G!E$79,0) -> 10790 | H219: 78695 | I219: =ROUND($F219*[3]G!G$79,0) -> 1436 | J219: =ROUND($F219*[3]G!H$79,0) -> 667 | K219: =ROUND($F219*[3]G!I$79,0) -> 43673 | L219: =ROUND($F219*[3]G!J$79,0) -> 28130 | M219: =ROUND($F219*[3]G!K$79,0) -> 0 | N219: =ROUND($F219*[3]G!L$79,0) -> 7592 | O219: =ROUND($F219*[3]G!M$79,0) -> 17 | P219: =ROUND($F219*[3]G!N$79,0) -> 0 | Q219: 0
A220: Integrated Pest Management | B220: Misc. Project Programs | D220: 37000 | E220: 0 | F220: =[3]B!J107 -> 37000 | G220: =ROUND($F220*[3]G!E$80,0) -> 2335 | H220: 17026 | I220: =ROUND($F220*[3]G!G$80,0) -> 311 | J220: =ROUND($F220*[3]G!H$80,0) -> 144 | K220: =ROUND($F220*[3]G!I$80,0) -> 9450 | L220: =ROUND($F220*[3]G!J$80,0) -> 6087 | M220: =ROUND($F220*[3]G!K$80,0) -> 0 | N220: =ROUND($F220*[3]G!L$80,0) -> 1643 | O220: =ROUND($F220*[3]G!M$80,0) -> 4 | P220: =ROUND($F220*[3]G!N$80,0) -> 0 | Q220: 0
A221: CVP RPA Implementation (Mitigation) | B221: Misc. Project Programs | D221: 16000 | E221: -16000 | F221: =[3]B!J108 -> 0 | G221: =ROUND($F221*[3]G!E$81,0) -> 0 | H221: 0 | I221: =ROUND($F221*[3]G!G$81,0) -> 0 | J221: =ROUND($F221*[3]G!H$81,0) -> 0 | K221: =ROUND($F221*[3]G!I$81,0) -> 0 | L221: =ROUND($F221*[3]G!J$81,0) -> 0 | M221: =ROUND($F221*[3]G!K$81,0) -> 0 | N221: =ROUND($F221*[3]G!L$81,0) -> 0 | O221: =ROUND($F221*[3]G!M$81,0) -> 0 | P221: =ROUND($F221*[3]G!N$81,0) -> 0 | Q221: 0
A222: Drought Transfer Program & Contingency | B222: Misc. Project Programs | D222: 35000 | E222: 5096000 | F222: =[3]B!J109 -> 5131000 | G222: =ROUND($F222*[3]G!E$82,0) -> 633165 | H222: 4090433 | I222: =ROUND($F222*[3]G!G$82,0) -> 169323 | J222: =ROUND($F222*[3]G!H$82,0) -> 0 | K222: =ROUND($F222*[3]G!I$82,0) -> 213963 | L222: =ROUND($F222*[3]G!J$82,0) -> 0 | M222: =ROUND($F222*[3]G!K$82,0) -> 0 | N222: =ROUND($F222*[3]G!L$82,0) -> 0 | O222: =ROUND($F222*[3]G!M$82,0) -> 24116 | P222: =ROUND($F222*[3]G!N$82,0) -> 0 | Q222: 0
A223: Real-Time Water Operations (Mitigation) | B223: Misc. Project Programs | D223: 0 | E223: 0 | F223: =[3]B!J110 -> 0 | G223: =ROUND($F223*[3]G!E$83,0) -> 0 | H223: 0 | I223: =ROUND($F223*[3]G!G$83,0) -> 0 | J223: =ROUND($F223*[3]G!H$83,0) -> 0 | K223: =ROUND($F223*[3]G!I$83,0) -> 0 | L223: =ROUND($F223*[3]G!J$83,0) -> 0 | M223: =ROUND($F223*[3]G!K$83,0) -> 0 | N223: =ROUND($F223*[3]G!L$83,0) -> 0 | O223: =ROUND($F223*[3]G!M$83,0) -> 0 | P223: =ROUND($F223*[3]G!N$83,0) -> 0 | Q223: 0
A224: Real-Time Water Operations (Mitigation) | B224: Environmental Compliance | D224: 6185000 | E224: =F224-D224 -> 5545000 | F224: =[3]B!J488 -> 11730000 | G224: =ROUND($F224*[3]G!E$380,0) -> 702627 | H224: =F224-G224-SUM(I224:P224) -> 3589380 | I224: =ROUND($F224*[3]G!G$380,0) -> 83283 | J224: =ROUND($F224*[3]G!H$380,0) -> 0 | K224: =ROUND($F224*[3]G!I$380,0) -> 1239861 | L224: =ROUND($F224*[3]G!J$380,0) -> 4767072 | M224: =ROUND($F224*[3]G!K$380,0) -> 0 | N224: =ROUND($F224*[3]G!L$380,0) -> 1347777 | O224: =ROUND($F224*[3]G!M$380,0) -> 0 | P224: =ROUND($F224*[3]G!N$380,0) -> 0 | Q224: =F224-SUM(G224:P224) -> 0
A225: Intervention (Mitigation) | B225: Environmental Compliance | D225: 0 | E225: =F225-D225 -> 1000000 | F225: =[3]B!J489 -> 1000000 | G225: =ROUND($F225*[3]G!E$381,0) -> 59900 | H225: =ROUND($F225*[3]G!F$381,0) -> 306000 | I225: =ROUND($F225*[3]G!G$381,0) -> 7100 | J225: =ROUND($F225*[3]G!H$381,0) -> 0 | K225: =ROUND($F225*[3]G!I$381,0) -> 105700 | L225: =ROUND($F225*[3]G!J$381,0) -> 406400 | M225: =ROUND($F225*[3]G!K$381,0) -> 0 | N225: =ROUND($F225*[3]G!L$381,0) -> 114900 | O225: =ROUND($F225*[3]G!M$381,0) -> 0 | P225: =ROUND($F225*[3]G!N$381,0) -> 0 | Q225: =F225-SUM(G225:P225) -> 0
A226: Water Operations | B226: Water and Power Operations | D226: 1632000 | E226: 5963000 | F226: =[3]B!J185 -> 7595000 | G226: =ROUND($F226*[3]G!E$359,0) -> 937223 | H226: =F226-G226-SUM(I226:P226) -> 6054733 | I226: =ROUND($F226*[3]G!G$359,0) -> 250635 | J226: =ROUND($F226*[3]G!H$359,0) -> 0 | K226: =ROUND($F226*[3]G!I$359,0) -> 316712 | L226: =ROUND($F226*[3]G!J$359,0) -> 0 | M226: =ROUND($F226*[3]G!K$359,0) -> 0 | N226: =ROUND($F226*[3]G!L$359,0) -> 0 | O226: =ROUND($F226*[3]G!M$359,0) -> 35697 | P226: =ROUND($F226*[3]G!N$359,0) -> 0 | Q226: 0
A228: Water and Power Systems Controls | D228: 48952000 | E228: =SUM(E200:E226) -> 1037000 | F228: 56174000 | G228: 2864688 | H228: 17764681 | I228: 605990 | J228: 21427 | K228: 6565953 | L228: 6077237 | M228: 0 | N228: 1706610 | O228: 67414 | P228: 20500000 | Q228: =F228-SUM(G228:P228) -> 0
A232: Table 6. Allocated Operation and Maintenance Costs, Fiscal Year 2023 | P232: Sheet 4 of 11
A233: Central Valley Project
A234: California
P236: Non-
D237: Budget Year | E237: =E$16 -> Increase | F237: =F$16 -> Budget Year | I237: =I$16 -> Fish and | L237: =L$16 -> Flood | N237: =N$16 -> Water Quality | O237: =O$16 -> State of | P237: Reimbursable
A238: Component and Feature | B238: =B$17 -> Division or Unit | D238: 2021 | E238: =E$17 -> (Decrease) | F238: 2023 | G238: M&I Water | H238: Irrigation | I238: Wildlife | J238: Recreation | K238: Power | L238: Control | M238: Navigation | N238: Improvement | O238: California | P238: Program
A240: WATER MARKETING (continued)
A242: 3405(a) Water Transfers | B242: Central Valley Project Improv. | C242: 1/ | D242: 0 | E242: =F242-D242 -> 0 | F242: =[3]B!J127 -> 0 | G242: =ROUND($F242*[3]G!E$94,0) -> 0 | H242: =F242-G242-SUM(I242:P242) -> 0 | I242: =ROUND($F242*[3]G!G$94,0) -> 0 | J242: =ROUND($F242*[3]G!H$94,0) -> 0 | K242: =ROUND($F242*[3]G!I$94,0) -> 0 | L242: =ROUND($F242*[3]G!J$94,0) -> 0 | M242: =ROUND($F242*[3]G!K$94,0) -> 0 | N242: =ROUND($F242*[3]G!L$94,0) -> 0 | O242: =ROUND($F242*[3]G!M$94,0) -> 0 | P242: =ROUND($F242*[3]G!N$94,0) -> 0 | Q242: =F242-SUM(G242:P242) -> 0
A243: 3405(a) Water Rights | B243: Central Valley Project Improv. | C243: 1/ | D243: 0 | E243: 0 | F243: =[3]B!J128 -> 0 | G243: =ROUND($F243*[3]G!E$95,0) -> 0 | H243: =F243-G243-SUM(I243:P243) -> 0 | I243: =ROUND($F243*[3]G!G$95,0) -> 0 | J243: =ROUND($F243*[3]G!H$95,0) -> 0 | K243: =ROUND($F243*[3]G!I$95,0) -> 0 | L243: =ROUND($F243*[3]G!J$95,0) -> 0 | M243: =ROUND($F243*[3]G!K$95,0) -> 0 | N243: =ROUND($F243*[3]G!L$95,0) -> 0 | O243: =ROUND($F243*[3]G!M$95,0) -> 0 | P243: =ROUND($F243*[3]G!N$95,0) -> 0 | Q243: 0
A244: 3405(e) Irrigation Training and Research Center | B244: Central Valley Project Improv. | C244: 1/ | D244: 0 | E244: 0 | F244: =[3]B!J137 -> 0 | G244: =ROUND($F244*[3]G!E$104,0) -> 0 | H244: 0 | I244: =ROUND($F244*[3]G!G$104,0) -> 0 | J244: =ROUND($F244*[3]G!H$104,0) -> 0 | K244: =ROUND($F244*[3]G!I$104,0) -> 0 | L244: =ROUND($F244*[3]G!J$104,0) -> 0 | M244: =ROUND($F244*[3]G!K$104,0) -> 0 | N244: =ROUND($F244*[3]G!L$104,0) -> 0 | O244: =ROUND($F244*[3]G!M$104,0) -> 0 | P244: =ROUND($F244*[3]G!N$104,0) -> 0 | Q244: 0
A245: 3406(b,c) Water Contracts | B245: Central Valley Project Improv. | C245: 1/ | D245: 0 | E245: 0 | F245: =[3]B!J125 -> 0 | G245: =ROUND($F245*[3]G!E$92,0) -> 0 | H245: 0 | I245: =ROUND($F245*[3]G!G$92,0) -> 0 | J245: =ROUND($F245*[3]G!H$92,0) -> 0 | K245: =ROUND($F245*[3]G!I$92,0) -> 0 | L245: =ROUND($F245*[3]G!J$92,0) -> 0 | M245: =ROUND($F245*[3]G!K$92,0) -> 0 | N245: =ROUND($F245*[3]G!L$92,0) -> 0 | O245: =ROUND($F245*[3]G!M$92,0) -> 0 | P245: =ROUND($F245*[3]G!N$92,0) -> 0 | Q245: 0
A246: 3406(b,c) Project Benefits | B246: Central Valley Project Improv. | C246: 1/ | D246: 0 | E246: 0 | F246: =[3]B!J126 -> 0 | G246: =ROUND($F246*[3]G!E$93,0) -> 0 | H246: 0 | I246: =ROUND($F246*[3]G!G$93,0) -> 0 | J246: =ROUND($F246*[3]G!H$93,0) -> 0 | K246: =ROUND($F246*[3]G!I$93,0) -> 0 | L246: =ROUND($F246*[3]G!J$93,0) -> 0 | M246: =ROUND($F246*[3]G!K$93,0) -> 0 | N246: =ROUND($F246*[3]G!L$93,0) -> 0 | O246: =ROUND($F246*[3]G!M$93,0) -> 0 | P246: =ROUND($F246*[3]G!N$93,0) -> 0 | Q246: 0
A247: 3406(b)(3) Water Acquisition | B247: Central Valley Project Improv. | C247: 3/ | D247: 0 | E247: 0 | F247: =[3]B!J129 -> 0 | G247: =ROUND($F247*[3]G!E$96,0) -> 0 | H247: 0 | I247: =ROUND($F247*[3]G!G$96,0) -> 0 | J247: =ROUND($F247*[3]G!H$96,0) -> 0 | K247: =ROUND($F247*[3]G!I$96,0) -> 0 | L247: =ROUND($F247*[3]G!J$96,0) -> 0 | M247: =ROUND($F247*[3]G!K$96,0) -> 0 | N247: =ROUND($F247*[3]G!L$96,0) -> 0 | O247: =ROUND($F247*[3]G!M$96,0) -> 0 | P247: =ROUND($F247*[3]G!N$96,0) -> 0 | Q247: 0
A248: 3406(b)(7) Flow Standards and Objectives | B248: Central Valley Project Improv. | C248: 3/ | D248: 0 | E248: 0 | F248: =[3]B!J130 -> 0 | G248: =ROUND($F248*[3]G!E$97,0) -> 0 | H248: 0 | I248: =ROUND($F248*[3]G!G$97,0) -> 0 | J248: =ROUND($F248*[3]G!H$97,0) -> 0 | K248: =ROUND($F248*[3]G!I$97,0) -> 0 | L248: =ROUND($F248*[3]G!J$97,0) -> 0 | M248: =ROUND($F248*[3]G!K$97,0) -> 0 | N248: =ROUND($F248*[3]G!L$97,0) -> 0 | O248: =ROUND($F248*[3]G!M$97,0) -> 0 | P248: =ROUND($F248*[3]G!N$97,0) -> 0 | Q248: 0
... 367 more rows
